Cogmind - Beta 14 *** ADVENTURER MODE // 2025.03.14 @ 06:38:46 // Winter2019/RPGLIKE Player: Gallgagger Result: Heading to fleet! Performance ------------- Evolutions (9) 4500 Regions Visited (30) 6000 Robots Destroyed (774) 3870 Value Destroyed (47270) 47270 Prototype IDs (96) 1920 Alien Tech Used (8) 1600 Bonus (40769) 40769 TOTAL SCORE: 105929 Bonus ------- Triggered High Security 500 High Alert Combat Kills 21814 Follower Combat Kills 939 Awakened Behemoth Slayer 1000 Entered Garrisons 800 Entered DSFs 1000 Acquired ECA 300 Met Warlord at Base 500 MAIN.C Attacked Warlord 500 Warlord Defense Kills 4324 Used Core Reset Matrix 3000 Met Warlord at Research 2000 Scanned by Researcher 500 Destroyed MAIN.C Guards 500 Met Warlord at Command 2000 Win 3000 Friendly Fire -1908 Cogmind --------- Core Integrity 804/1100 Matter 300/300 Energy 1039/1040 System Corruption 0% Temperature Cool (2) Movement Flying (42) Location To Fleet Rendezvous Parts ------- > --- POWER (2) -------- Light Quantum Reactor Improved Quantum Reactor > --- PROPULSION (4) --- Impulse Thruster Array Impulse Thruster Array > --- UTILITY (12) ----- Advanced Gravity Neutralizer Experimental Optical Array Advanced Salvage Targeting Computer Advanced Target Analyzer Advanced Target Analyzer Advanced Target Analyzer Improved Armor Integrity Analyzer Advanced Kinecellerator > --- WEAPON (3) ------- Hypervelocity Multirail CR-A16's Behemoth Slayer > --- INVENTORY (3) ---- Medium Regenerative Plating Quantum Rifle Enhanced Nova Cannon Peak State ------------ > --- POWER ------------ Light Angular Momentum Engine Micro Fission Core > --- PROPULSION ------- Impulse Thruster Array Flightbrick > --- UTILITY ---------- Advanced Gravity Neutralizer Experimental Optical Array Advanced Signal Interpreter Improved Terrain Scanner 0b10 Decoder Chip [Generic] Advanced Target Analyzer Experimental Core Analyzer Experimental Core Analyzer Improved Weapon Cycler Advanced Weapon Cycler Tower Shield Medium Regenerative Plating Core Physics Calibrator > --- WEAPON ----------- Multirail Hypervelocity Multirail CR-A16's Behemoth Slayer > --- INVENTORY -------- Improved Particle Charger Quantum Rifle [Rating: 210] Favorites ----------- Power Micro Fission Core Engine Light Angular Momentum Engine Power Core Micro Fission Core Reactor Improved Quantum Reactor Propulsion Impulse Thruster Array Treads Light Treads Wheel Wheel Flight Unit Impulse Thruster Array Utility Advanced Target Analyzer Device Improved Terrain Scanner Processor Advanced Target Analyzer Hackware System Shield Protection Tower Shield Artifact Core Physics Calibrator Weapon Advanced Beam Rifle Energy Gun Advanced Beam Rifle Energy Cannon Nova Cannon Ballistic Gun Hypervelocity Multirail Ballistic Cannon Battle Cannon Launcher Advanced EMP Blaster Special Weapon Welding Torch Impact Weapon Powered Hammer Slashing Weapon Phasing Sabre Piercing Weapon CR-A16's Behemoth Slayer Special Melee Weapon Advanced Datajack Build | -11 -10 -10 -8 -8 -8 -8 -7 -6 -6 -6 -6 -5 -5 -5 -5 -5 -5 -5 -4 -4 -4 -4 -3 -3 -3 -2 -2 -2 -1 -1 ------- Run | Yrd Mat Sub Mat Gar Mat Gar Fac Fac Low Low Zio Pro Fac Gar Fac Gar Fac DSF Fac Upp Upp War Pro Res DSF Res Tes Sec Acc Com Slots Evolved 16 | 4 1 2 1 4 . . . . . . . 1 . . . . . . . . 1 . . . . . . 1 . 1 Power 1 | 1 . . . . . . . . . . . . . . . . . . . . . . . . . . . . . . Propulsion 3 | 1 . 2 . . . . . . . . . . . . . . . . . . . . . . . . . . . . Utility 10 | 1 . . 1 4 . . . . . . . 1 . . . . . . . . 1 . . . . . . 1 . 1 Weapon 2 | 1 1 . . . . . . . . . . . . . . . . . . . . . . . . . . . . . Parts Attached 324 | 7 7 7 12 6 2 1 2 4 2 2 2 4 . 2 1 4 . 1 2 2 4 5 2 . 3 5 18 31 . 186 Power 26 | 2 2 . 2 2 . . . . . . . . . . 1 . . . . . . . . . . . . . . 17 Engine 6 | 2 2 . 1 . . . . . . . . . . . 1 . . . . . . . . . . . . . . . Core 3 | . . . 1 2 . . . . . . . . . . . . . . . . . . . . . . . . . . Reactor 17 | . . . . . . . . . . . . . . . . . . . . . . . . . . . . . . 17 Propulsion 17 | 2 . 2 2 . 1 . . 1 . . . . . . . 1 . . . . . . . . . 2 . . . 6 Treads 1 | . . 1 . . . . . . . . . . . . . . . . . . . . . . . . . . . . Leg . | . . . . . . . . . . . . . . . . . . . . . . . . . . . . . . . Wheel 2 | 2 . . . . . . . . . . . . . . . . . . . . . . . . . . . . . . Hover . | . . . . . . . . . . . . . . . . . . . . . . . . . . . . . . . Flight 14 | . . 1 2 . 1 . . 1 . . . . . . . 1 . . . . . . . . . 2 . . . 6 Utility 178 | 1 . 2 3 4 1 . . 3 2 2 1 2 . 2 . . . 1 1 1 1 3 . . 3 1 4 26 . 114 Device 109 | 1 . . 2 . 1 . . 3 1 1 . 2 . 2 . . . 1 . 1 . 1 . . 3 1 3 15 . 71 Storage . | . . . . . . . . . . . . . . . . . . . . . . . . . . . . . . . Processor 31 | . . . 1 4 . . . . . 1 1 . . . . . . . 1 . 1 2 . . . . . 8 . 12 Hackware 2 | . . . . . . . . . . . . . . . . . . . . . . . . . . . . . . 2 Protection 35 | . . 2 . . . . . . 1 . . . . . . . . . . . . . . . . . 1 2 . 29 Artifact 1 | . . . . . . . . . . . . . . . . . . . . . . . . . . . . 1 . . Weapon 103 | 2 5 3 5 . . 1 2 . . . 1 2 . . . 3 . . 1 1 3 2 2 . . 2 14 5 . 49 Energy Gun 40 | 2 4 . 5 . . 1 1 . . . 1 1 . . . 2 . . . 1 3 1 1 . . 1 7 . . 9 Energy Cannon 16 | . 1 1 . . . . . . . . . . . . . . . . . . . . . . . . 4 . . 10 Ballistic Gun 18 | . . . . . . . . . . . . . . . . . . . . . . . . . . . 2 4 . 12 Ballistic Cannon 7 | . . 2 . . . . . . . . . . . . . . . . . . . . . . . . . . . 5 Launcher 1 | . . . . . . . 1 . . . . . . . . . . . . . . . . . . . . . . . Special Weapon 6 | . . . . . . . . . . . . . . . . . . . . . . 1 . . . . . 1 . 4 Impact Weapon 2 | . . . . . . . . . . . . . . . . . . . . . . . . . . . . . . 2 Slashing Weapon 1 | . . . . . . . . . . . . . . . . . . . . . . . . . . . . . . 1 Piercing Weapon 11 | . . . . . . . . . . . . 1 . . . 1 . . 1 . . . 1 . . 1 1 . . 5 Special Melee Weapon 1 | . . . . . . . . . . . . . . . . . . . . . . . . . . . . . . 1 Unidentified Prototypes 45 | . 1 2 2 . 1 . 1 1 1 . . . . . . . . . . 1 . 1 . . . 1 8 10 . 15 Parts Lost 2 | . . . 1 . . . . . . . . . . . . . . . . . . . . . . . . . . 1 Power . | . . . . . . . . . . . . . . . . . . . . . . . . . . . . . . . Propulsion . | . . . . . . . . . . . . . . . . . . . . . . . . . . . . . . . Utility 1 | . . . . . . . . . . . . . . . . . . . . . . . . . . . . . . 1 Weapon 1 | . . . 1 . . . . . . . . . . . . . . . . . . . . . . . . . . . Highest Loss Streak 1 | . . . 1 . . . . . . . . . . . . . . . . . . . . . . . . . . 1 To Critical Strikes . | . . . . . . . . . . . . . . . . . . . . . . . . . . . . . . . Average Slot Usage (%) 69 | . 87 54 44 50 58 61 61 61 62 65 64 67 69 72 73 70 69 69 73 73 72 72 73 73 73 73 75 75 76 78 Engine 3 | . 24 12 6 2 . . . . . . . . . . . 3 3 3 3 3 3 3 3 3 3 3 3 3 3 . Core 3 | . . . 2 5 7 7 7 7 7 7 7 7 7 7 7 3 3 3 3 3 3 3 3 3 3 3 3 3 3 . Reactor 1 | . . . . . . . . . . . . . . . . . . . . . . . . . . . . . . 6 Wheel 1 | . 24 4 . . . . . . . . . . . . . . . . . . . . . . . . . . . . Flight 7 | . . 3 4 8 8 11 11 11 11 11 11 11 11 11 11 8 7 7 7 7 7 7 7 7 7 7 7 7 7 8 Device 14 | . 11 5 8 8 10 11 11 11 11 11 11 13 15 18 19 19 19 19 19 19 19 19 19 19 22 23 21 16 15 14 Processor 18 | . . . 3 5 15 15 15 15 15 17 18 19 19 19 19 19 19 19 19 19 20 23 23 23 19 19 19 22 26 27 Protection 3 | . . 7 4 3 3 3 3 3 4 4 3 3 3 3 3 3 3 3 3 3 3 3 3 3 3 3 5 7 7 3 Energy Gun 8 | . 23 15 11 12 11 11 11 11 11 11 11 10 11 11 11 10 11 11 11 11 11 10 11 11 11 8 6 1 . . Ballistic Gun 2 | . . . . . . . . . . . . . . . . . . . . . . . . . . . 1 5 7 6 Piercing Weapon 1 | . . . . . . . . . . . . . . . . . . . 3 3 1 . . . . 1 3 3 3 3 Peak Build Rating 210 | 9 18 72 86 106 109 111 111 116 120 122 125 132 130 138 138 145 145 145 155 157 162 163 164 163 167 169 181 210 205 205 Average Rating 134 | 5 14 57 80 89 107 109 111 112 117 121 124 128 130 136 137 141 145 144 154 156 159 160 163 163 164 167 172 199 203 161 On Entrance 127 | . 9 18 72 86 106 109 111 111 116 120 122 125 130 130 138 137 145 145 145 155 157 161 163 163 163 165 169 178 203 205 Naked Turns . | . . . . . . . . . . . . . . . . . . . . . . . . . . . . . . . Heaviest Build 98 | 13 24 70 70 55 58 61 61 61 65 65 64 65 65 66 70 70 70 70 72 75 78 77 77 77 83 82 84 85 80 98 Greatest Support 86 | 26 26 29 43 43 43 43 63 67 67 67 67 67 67 67 72 77 77 77 77 77 77 77 77 77 82 82 86 86 86 86 Greatest Overweight (x) 2 | . . 2 2 1 1 1 1 . . . . . . . . . . 1 . . 1 . . . 1 1 . . . 1 Average Overweight (x) . | . . 1 1 1 1 1 . . . . . . . . . . . . . . . . . . . . . . . . Largest Inventory Capacity 3 | . . . 1 1 1 1 1 1 2 2 3 3 3 3 3 3 3 3 3 3 3 3 3 3 3 3 3 3 3 3 Average Capacity 2 | . . . . 1 1 1 1 1 1 2 2 3 3 3 3 3 3 3 3 3 3 3 3 3 3 3 3 3 3 3 Most Carried 3 | . . . 1 1 1 1 . 1 2 2 3 3 3 3 3 3 3 3 3 2 3 3 3 3 3 3 3 3 3 3 Average Carried 1 | . . . . 1 1 . . . 1 2 2 3 3 3 3 3 3 3 2 2 2 3 3 3 3 3 2 1 1 2 Final Capacity 3 | . . . 1 1 1 1 1 1 2 2 3 3 3 3 3 3 3 3 3 3 3 3 3 3 3 3 3 3 3 3 Final Carried 3 | . . . 1 1 1 . . 1 2 2 3 3 3 3 3 3 3 3 2 2 3 3 3 3 3 3 3 1 3 3 Class Distribution -------------------- 42% | Hacker-Scout 11% | Hacker-Mutant 9% | Skirmisher 9% | Scavenger-Mutant 7% | Hacker-Gunner 5% | Wizard-Mutant 5% | Hacker-Skirmisher 4% | Mutant Dominant Class ---------------- Mutant | -10/Materials Skirmisher | -10/Subcaves Skirmisher | -8/Materials Hacker-Skirmisher | -8/Garrison Hacker-Gunner | -8/Materials Hacker-Gunner | -8/Garrison Hacker-Scout | -7/Factory Hacker-Scout | -6/Factory Hacker-Scout | -6/Lower Caves Hacker-Scout | -6/Lower Caves Hacker-Scout | -6/Zion Hacker-Scout | -5/Proximity Caves Hacker-Scout | -5/Factory Hacker-Scout | -5/Garrison Hacker-Scout | -5/Factory Hacker-Scout | -5/Garrison Hacker-Scout | -5/Factory Hacker-Scout | -5/DSF Hacker-Scout | -4/Factory Hacker-Scout | -4/Upper Caves Hacker-Scout | -4/Upper Caves Hacker-Scout | -4/Warlord Hacker-Scout | -3/Proximity Caves Hacker-Scout | -3/Research Hacker-Scout | -3/DSF Hacker-Scout | -2/Research Hacker-Scout | -2/Testing Alien-Scout | -2/Section 7 Scavenger-Scout | -1/Access Hacker-Mutant | -1/Command Resources | -11 -10 -10 -8 -8 -8 -8 -7 -6 -6 -6 -6 -5 -5 -5 -5 -5 -5 -5 -4 -4 -4 -4 -3 -3 -3 -2 -2 -2 -1 -1 ----------- Run | Yrd Mat Sub Mat Gar Mat Gar Fac Fac Low Low Zio Pro Fac Gar Fac Gar Fac DSF Fac Upp Upp War Pro Res DSF Res Tes Sec Acc Com Matter Collected 8739 | 140 219 158 130 57 50 16 20 10 60 20 20 40 . 20 . 70 . 24 20 30 40 50 20 . 30 50 148 1561 187 5549 Remotely 922 | . . . . . . . . . . . . . . . . . . . . . . . . . . . . . . 922 Salvage Created 45020 | 13 689 404 1458 1561 438 1080 1525 245 373 500 . 1155 . 1063 . 1915 . 698 1698 1078 1420 1856 1536 . 789 1528 1950 3410 1273 15365 Parts 1909 | 4 64 32 92 83 22 56 59 18 13 8 . 37 . 34 . 61 . 42 68 44 47 83 66 . 42 67 95 208 94 470 Haulers Intercepted 8 | . 1 . 2 . 1 . 1 . . . . . . . . . . 1 2 . . . . . . . . . . . Recyclers Shooed 1 | . . . . . . . . . . . . . . . . . . . . . . . . . . . . . . 1 Parts Field Recycled . | . . . . . . . . . . . . . . . . . . . . . . . . . . . . . . . Retrieved Matter . | . . . . . . . . . . . . . . . . . . . . . . . . . . . . . . . Parts Self-Destructed 225 | . . 6 . . . . . . 13 8 . 46 . . . . . . . 42 46 . 64 . . . . . . . Prevented . | . . . . . . . . . . . . . . . . . . . . . . . . . . . . . . . Kills | -11 -10 -10 -8 -8 -8 -8 -7 -6 -6 -6 -6 -5 -5 -5 -5 -5 -5 -5 -4 -4 -4 -4 -3 -3 -3 -2 -2 -2 -1 -1 ------- Run | Yrd Mat Sub Mat Gar Mat Gar Fac Fac Low Low Zio Pro Fac Gar Fac Gar Fac DSF Fac Upp Upp War Pro Res DSF Res Tes Sec Acc Com Combat Hostiles Destroyed 736 | . 25 17 37 43 4 30 27 4 9 7 . 22 . 18 . 33 . 10 17 16 23 31 23 . 11 21 27 50 24 207 Guns 677 | . 21 16 31 39 4 29 26 4 9 7 . 18 . 17 . 26 . 10 10 16 21 29 21 . 11 19 23 48 21 201 Cannons 11 | . 4 1 4 . . . . . . . . . . . . . . . . . . . . . . . . . . 2 AOE 3 | . . . . . . . . . . . . . . . . . . . . . . . . . . . 3 . . . Classes Destroyed 32 | 1 5 2 3 2 . . 1 . . 1 . 2 . 1 . 1 . 1 . . . 1 . . 1 . 2 4 1 3 Worker 6 | . 2 . . . . . . 1 . . . . . . . . . . . . . . . . . . 1 . . 2 Builder 3 | . . . . . . . . . . . . . . . . . . . . . . . . . . . . 3 . . Tunneler 1 | 1 . . . . . . . . . . . . . . . . . . . . . . . . . . . . . . Hauler 8 | . 1 . 2 . 1 . 1 . . . . . . . . . . 1 2 . . . . . . . . . . . Recycler 14 | . . . . . . . . . . . . . . . . . . . . . . . . . . . 1 1 1 11 Carrier 5 | . . . . . . . . . . . . . . . . . . . . . . . . . . . . . 1 4 Minesweeper 2 | . . . . . . . . . . 1 . . . . . . . . . . 1 . . . . . . . . . Mechanic 6 | . . . . . . . . . . . . . . . . . . . . . . . . . . . . . . 6 Operator 11 | . . . 2 . . . 2 . . . . . . . . . . . 1 . . . . . . 1 . 1 1 3 Drone 8 | . . . . . . . . . . . . . . . . . . . . . . . . . . . . 4 4 . Watcher 29 | . 2 . 5 1 3 . 1 2 . . . . . . . . . . 4 . . . . . . 2 . 3 2 4 Swarmer 119 | . 3 . 6 7 . 10 4 . 3 1 . 6 . 5 . 5 . . . 9 7 . 5 . 3 8 5 10 4 18 Cutter 3 | . . . . . . . . . . . . . . 1 . . . . . . . . . . . . . . . 2 Saboteur 3 | . . . . . . . . . . . . 1 . . . . . . . . . . . . . . . . . 2 Grunt 293 | . 22 . 17 19 3 13 17 2 4 4 . 8 . 9 . 15 . 6 7 . 9 18 11 . 4 3 12 14 5 71 Brawler 38 | . . . 2 . . . 1 . . 1 . 4 . . . . . 1 . . 4 3 1 . . . 2 . . 19 Duelist 17 | . . . . 2 . 1 . . . . . 1 . 1 . . . . . . 1 1 3 . . . . . . 7 Protector 18 | . . . . . . . 1 . . . . . . . . . . . . . . 3 1 . . . 1 . . 12 Researcher 9 | . . . . . . . . . . . . . . . . . . . . . . . . . . . 6 3 . . Sentry 61 | . . 1 11 10 1 4 4 2 . 1 . 1 . . . 5 . . . 1 2 1 2 . . 4 . 5 2 4 Demolisher 3 | . . . . . . . . . . . . . . . . . . . . . . 1 . . . . . . . 2 Specialist 8 | . . . . . . . . . . . . . . . . . . . . . . . . . 1 . . . . 7 Hunter 56 | . . . 1 . . 2 . . 1 . . . . . . 4 . 2 4 4 . . . . 2 3 4 3 5 21 Programmer 51 | . . . . 5 . . . . 1 . . . . 2 . 1 . . 3 2 . 4 . . . 1 3 5 1 23 Heavy 6 | . . . . . . . . . . . . . . . . . . 1 2 . . . . . 1 . . 1 . 1 Q-Series 2 | . . . . . . . . . . . . . . . . . . . . . . . . . . . . 2 . . Behemoth 13 | . . . . . . . . . . . . 1 . . . 1 . . 1 . . . 1 . . 1 . 2 3 3 S7 Guard 2 | . . . . . . . . . . . . . . . . . . . . . . . . . . . . 2 . . M Guard 2 | . . . . . . . . . . . . . . . . . . . . . . . . . . . . . . 2 Combat Programmer 2 | . . . . . . . . . . . . . . . . . . . . . . . . . . . . . . 2 Striker 9 | . . . . . . . . . . . . . . . . 2 . . . . . 2 . . . 1 . . . 4 Executioner 9 | . . . . . . . . . . . . . . . . . . . . . . . . . . . . 2 . 7 Subdweller 16 | . . 16 . . . . . . . . . . . . . . . . . . . . . . . . . . . . Assembled 4 | . . . . . . . . . . . . . . . . . . . . . . . . . . . . . . 4 Thug 2 | . . . . . . . 1 . . . . . . . . . . . . . . . . . . . . . . 1 Butcher 1 | . . . . . . . 1 . . . . . . . . . . . . . . . . . . . . . . . Fireman 1 | . . . . . . . . . . . . . . . . . . . . . . . . . . . . . . 1 Best Kill Streak 53 | 1 4 3 14 6 3 14 9 3 8 5 . 6 . 5 . 12 . 4 6 6 6 11 7 . 7 8 9 16 12 53 Combat Bots Only 51 | . 4 3 6 6 2 14 5 3 8 4 . 6 . 5 . 12 . 4 5 6 6 11 7 . 7 4 9 10 12 51 Max Kills in Single Turn 5 | 1 1 1 2 2 1 2 2 1 2 1 . 2 . 2 . 3 . 2 1 3 2 2 2 . 2 2 3 3 2 5 Gunslinging 2 | . . . 1 1 . 1 1 . 1 . . 1 . 1 . 2 . 1 . 2 1 1 1 . 1 1 1 1 1 1 Exploded 3 | . . . . . . . . . . . . . . . . . . . . . . . . . . . 3 . . . Melee . | . . . . . . . . . . . . . . . . . . . . . . . . . . . . . . . Uniques/NPCs Destroyed . | . . . . . . . . . . . . . . . . . . . . . . . . . . . . . . . Combat | -11 -10 -10 -8 -8 -8 -8 -7 -6 -6 -6 -6 -5 -5 -5 -5 -5 -5 -5 -4 -4 -4 -4 -3 -3 -3 -2 -2 -2 -1 -1 -------- Run | Yrd Mat Sub Mat Gar Mat Gar Fac Fac Low Low Zio Pro Fac Gar Fac Gar Fac DSF Fac Upp Upp War Pro Res DSF Res Tes Sec Acc Com Hostile Shots Fired 1752 | . 69 57 86 117 8 91 82 27 20 25 . 44 . 30 . 76 . 30 75 50 25 70 70 . 60 60 95 92 78 315 Missed 738 | . 25 13 28 31 3 34 34 19 9 17 . 17 . 13 . 35 . 12 35 25 11 31 29 . 27 25 47 39 34 145 Damage Taken 15173 | . 372 867 649 901 66 476 341 35 141 97 . 474 . 293 . 720 . 345 715 263 178 492 520 . 434 736 694 1203 641 3520 Core 8697 | . 306 573 361 447 36 230 159 20 87 46 . 278 . 161 . 382 . 194 441 137 78 239 259 . 197 366 296 701 307 2396 Absorbed by Shields 914 | . . . . . . . . . . . . . . . . 3 . . . . . 146 70 . . . . . . 695 Redirected to Core 7821 | . 211 459 330 421 36 230 147 20 87 46 . 278 . 161 . 382 . 180 355 137 78 233 259 . 183 351 296 616 307 2018 Redirected to Shielding 22 | . . . . . . . . . . . . . . . . . . . . . . . . . . . . . . 22 Ignored by Resistances 6484 | . 114 205 187 330 24 194 145 18 50 35 . 163 . 93 . 253 . 138 313 116 88 298 266 . 204 332 313 523 298 1784 Regen/Repaired (Parts) 256 | . . . . . . . . . . . . . . . . . . . . . . . . . . . 16 32 23 185 Core Remaining (%) 96 | 100 . 90 . . . 98 100 . . . . 100 . . . . . 100 . . . . 100 . 100 . . 100 . 73 Volleys Fired 1490 | 1 55 53 83 92 22 52 50 16 17 17 . 32 2 46 3 74 8 35 61 27 35 55 43 3 23 50 52 126 40 317 Largest 3 | 2 3 3 3 3 3 3 3 3 3 3 . 3 3 3 3 3 3 2 3 3 3 3 3 2 3 3 2 2 2 2 Hottest 282 | 100 168 168 192 183 183 203 203 203 203 203 . 227 227 227 227 227 227 142 227 247 256 282 282 188 282 282 200 115 95 170 Shots Fired 3563 | 2 111 139 230 264 52 145 148 48 49 50 . 96 6 126 9 206 13 69 177 75 107 165 129 4 69 114 102 195 79 584 Gun 3490 | 2 91 121 220 264 52 145 148 48 49 50 . 96 6 126 9 206 13 69 177 75 107 165 129 4 69 114 101 195 79 560 Cannon 73 | . 20 18 10 . . . . . . . . . . . . . . . . . . . . . . . 1 . . 24 Launcher . | . . . . . . . . . . . . . . . . . . . . . . . . . . . . . . . Special . | . . . . . . . . . . . . . . . . . . . . . . . . . . . . . . . Kinetic 847 | . . 16 . . . . . . . . . . . . . . . . . . . . . . . . 14 178 79 560 Thermal 2715 | 2 111 123 230 264 52 145 148 48 49 50 . 96 6 126 9 206 13 69 177 75 107 165 129 4 69 114 88 17 . 23 Explosive . | . . . . . . . . . . . . . . . . . . . . . . . . . . . . . . . Electromagnetic 1 | . . . . . . . . . . . . . . . . . . . . . . . . . . . . . . 1 Robot Hit Streak 89 | 1 20 44 47 48 8 65 89 48 33 21 . 38 . 64 . 40 . 56 37 38 53 57 66 . 27 32 35 64 31 81 Robot Miss Streak 4 | . 1 2 1 2 1 1 2 2 1 1 . 1 . 1 . 1 . 1 1 1 2 2 1 . 1 2 1 3 2 4 Penetration Max 4 | . . . . . . . . . . . . . . . . . . . . . . . . . . . 1 2 1 4 Secondary Targets 133 | . 1 2 7 6 . 7 4 . 3 2 . 8 . 6 . 9 . 3 3 5 5 15 4 . 2 2 5 7 4 23 Max Gunslinging Chain 2 | . 1 1 1 1 . 1 2 . 1 1 . 1 . 1 . 2 . 1 1 2 1 1 1 . 1 1 1 1 1 1 Shots Hit Robots 2683 | 1 82 108 187 167 18 90 114 27 37 39 . 83 . 73 . 147 . 62 147 56 76 147 104 . 58 88 81 171 60 460 Core Hits 1988 | 1 34 32 73 75 11 47 58 11 14 14 . 30 . 35 . 63 . 25 51 31 45 69 42 . 18 36 55 214 77 827 Critical Kills 256 | . . . . . . . . . . . . . . . . . . . . . . . . . . . 5 43 19 189 Critical Parts Destroyed 329 | . . . . . . . . . . . . . . . . . . . . . . . . . . . 8 50 21 250 Critical Strikes 890 | . 6 7 16 20 3 12 12 3 6 8 . 16 . 8 . 26 . 9 21 7 7 . . . . . 20 113 43 527 Burn 188 | . 6 7 16 20 3 12 12 3 6 8 . 16 . 8 . 26 . 9 21 7 7 . . . . . 1 . . . Destroy 699 | . . . . . . . . . . . . . . . . . . . . . . . . . . . 17 113 43 526 Impale 3 | . . . . . . . . . . . . . . . . . . . . . . . . . . . 2 . . 1 Melee Attacks 75 | . . . . . . . . . . . . 2 . . . 1 . . 5 . . . 1 . . 3 16 10 15 22 Impact . | . . . . . . . . . . . . . . . . . . . . . . . . . . . . . . . Slashing . | . . . . . . . . . . . . . . . . . . . . . . . . . . . . . . . Piercing 75 | . . . . . . . . . . . . 2 . . . 1 . . 5 . . . 1 . . 3 16 10 15 22 Sneak Attacks 4 | . . . . . . . . . . . . . . . . . . . . . . . . . . . 3 . . 1 Combat Hostiles . | . . . . . . . . . . . . . . . . . . . . . . . . . . . . . . . Follow-up Attacks . | . . . . . . . . . . . . . . . . . . . . . . . . . . . . . . . Damage Inflicted 82799 | 12 1362 1867 4001 4082 464 2540 3250 739 1086 891 . 2196 . 2019 . 3930 . 1830 4025 1558 2514 5630 4221 . 2638 4192 4260 3936 1383 18173 Guns 80112 | 12 1136 1751 3784 4082 464 2540 3035 739 1086 891 . 2155 . 2019 . 3930 . 1830 4002 1558 2514 5630 4221 . 2638 4155 3125 3885 1383 17547 Cannons 852 | . 226 116 217 . . . . . . . . . . . . . . . . . . . . . . . . . . 293 Explosions 1027 | . . . . . . . 215 . . . . . . . . . . . 23 . . . . . . . 789 . . . Melee 757 | . . . . . . . . . . . . 41 . . . . . . . . . . . . . 37 346 . . 333 Ramming 51 | . . . . . . . . . . . . . . . . . . . . . . . . . . . . 51 . . Kinetic 22971 | . . 116 . . . . . . . . . . . . . . . . . . . . . . . . 210 3715 1383 17547 Thermal 58208 | 12 1362 1751 4001 4082 464 2540 3250 739 1086 891 . 2155 . 2019 . 3930 . 1830 4002 1558 2514 5630 4221 . 2638 4155 2915 170 . 293 Explosive 789 | . . . . . . . . . . . . . . . . . . . . . . . . . . . 789 . . . Electromagnetic 23 | . . . . . . . . . . . . . . . . . . . 23 . . . . . . . . . . . Impact . | . . . . . . . . . . . . . . . . . . . . . . . . . . . . . . . Slashing . | . . . . . . . . . . . . . . . . . . . . . . . . . . . . . . . Piercing 757 | . . . . . . . . . . . . 41 . . . . . . . . . . . . . 37 346 . . 333 Highest Corruption 4 | . 3 3 . 1 1 1 1 . . . . . . 1 1 1 1 1 . 1 1 1 . . . . 1 2 . 4 Average Corruption 1 | . 3 3 . 1 1 1 1 . . . . . . 1 1 1 1 1 . 1 1 1 . . . . 1 1 . 2 Corruption Purged 4 | . . . . . . . . . . . . . . . . . . . . . . . . . . . . . . 4 Corruption Blocked . | . . . . . . . . . . . . . . . . . . . . . . . . . . . . . . . Effects 90 | . 8 11 . 4 3 5 1 . . . . . . 2 . 5 1 1 . 1 7 . . . . . 3 2 . 36 Message Errors 21 | . . 3 . 1 . 2 . . . . . . . . . 1 . . . . 2 . . . . . . . . 12 Matter Fused 18 | . 3 1 . 3 1 . . . . . . . . 1 . 2 . 1 . . . . . . . . 1 . . 5 Heat Flow Errors 14 | . . 3 . . . . 1 . . . . . . . . 1 . . . . 1 . . . . . 1 . . 7 Energy Discharges 16 | . 3 4 . . 1 . . . . . . . . 1 . . . . . . 2 . . . . . . 1 . 4 Data Loss (minor) 4 | . 1 . . . . . . . . . . . . . . . . . . . . . . . . . . . . 3 Data Loss (major) 6 | . . . . . . 2 . . . . . . . . . . . . . 1 . . . . . . . . . 3 Misfires 4 | . . . . . 1 . . . . . . . . . . . . . . . 2 . . . . . . . . 1 Alerts 3 | . 1 . . . . . . . . . . . . . . 1 . . . . . . . . . . . . . 1 Weapon Failures 4 | . . . . . . 1 . . . . . . . . . . 1 . . . . . . . . . 1 1 . . Overload Shots . | . . . . . . . . . . . . . . . . . . . . . . . . . . . . . . . Overflow Damage 239 | . . . 8 . . . . . . . . . . . . . . . . . . . . . . . 173 . . 58 Projectiles 40 | . . . 8 . . . . . . . . . . . . . . . . . . . . . . . . . . 32 Explosions . | . . . . . . . . . . . . . . . . . . . . . . . . . . . . . . . Melee 199 | . . . . . . . . . . . . . . . . . . . . . . . . . . . 173 . . 26 Knockbacks 1 | . . 1 . . . . . . . . . . . . . . . . . . . . . . . . . . . . Impact . | . . . . . . . . . . . . . . . . . . . . . . . . . . . . . . . Kinetic 1 | . . 1 . . . . . . . . . . . . . . . . . . . . . . . . . . . . Secondary . | . . . . . . . . . . . . . . . . . . . . . . . . . . . . . . . Self-Inflicted Damage 104 | . . . . . . . . . . . . . . . . . . . . . . . . . . 53 . 51 . . Shots 1 | . . . . . . . . . . . . . . . . . . . . . . . . . . 1 . . . . Rammed . | . . . . . . . . . . . . . . . . . . . . . . . . . . . . . . . Targets Rammed . | . . . . . . . . . . . . . . . . . . . . . . . . . . . . . . . Kicked . | . . . . . . . . . . . . . . . . . . . . . . . . . . . . . . . Crushed . | . . . . . . . . . . . . . . . . . . . . . . . . . . . . . . . Highest Temperature 389 | 54 21 173 266 24 1 7 147 24 48 185 . 389 76 76 9 162 . 22 39 124 300 224 224 . 112 141 94 131 . 91 Average Temperature 55 | 30 14 62 91 10 1 2 17 9 12 81 . 99 47 14 5 13 . 11 9 41 93 76 81 . 36 46 49 75 . 67 Received Heat Transfer 3694 | . 252 123 432 594 45 216 183 12 45 78 . 141 . 90 . 207 . 114 60 . 99 192 131 . 84 90 126 117 27 236 Effects 1 | . . . . . . . . . . . . 1 . . . . . . . . . . . . . . . . . . Shutdowns 1 | . . . . . . . . . . . . 1 . . . . . . . . . . . . . . . . . . Siege Activations . | . . . . . . . . . . . . . . . . . . . . . . . . . . . . . . . Robots Corrupted . | . . . . . . . . . . . . . . . . . . . . . . . . . . . . . . . Combat Hostiles . | . . . . . . . . . . . . . . . . . . . . . . . . . . . . . . . Parts Fried 4 | . . . . . . . . . . . . . . . . . . . . . . 3 . . . . . . . 1 Impact Corruptions . | . . . . . . . . . . . . . . . . . . . . . . . . . . . . . . . Robots Melted 33 | . . . 2 4 . 1 1 . . . . 3 . 1 . 6 . . 8 . 2 2 1 . . 1 1 . . . Combat Hostiles 31 | . . . 2 4 . 1 1 . . . . 3 . 1 . 6 . . 6 . 2 2 1 . . 1 1 . . . Parts Melted 317 | . 4 8 21 19 1 8 13 7 6 5 . 23 . 10 . 49 . 10 50 10 16 20 17 . 2 11 5 . . 2 Heat Transferred 89732 | 37 3552 4329 8214 7466 888 4126 5143 1221 1887 1850 . 4753 . 3359 . 7975 . 3071 7888 2919 3875 5008 3884 . 2183 3228 2497 185 . 194 Parts Sabotaged . | . . . . . . . . . . . . . . . . . . . . . . . . . . . . . . . Parts Stolen . | . . . . . . . . . . . . . . . . . . . . . . . . . . . . . . . Parts Stripped . | . . . . . . . . . . . . . . . . . . . . . . . . . . . . . . . Power Chain Reactions . | . . . . . . . . . . . . . . . . . . . . . . . . . . . . . . . Alert | -11 -10 -10 -8 -8 -8 -8 -7 -6 -6 -6 -6 -5 -5 -5 -5 -5 -5 -5 -4 -4 -4 -4 -3 -3 -3 -2 -2 -2 -1 -1 ------- Run | Yrd Mat Sub Mat Gar Mat Gar Fac Fac Low Low Zio Pro Fac Gar Fac Gar Fac DSF Fac Upp Upp War Pro Res DSF Res Tes Sec Acc Com Peak Influence 5715 | 5 763 . 646 1802 851 983 966 646 . . . . 228 807 401 1445 673 645 738 . . . . 206 414 1009 1585 1318 1349 5715 Initial 776 | . 2 . . 282 756 15 447 404 . . . . 224 140 366 247 657 415 293 . . . . 198 136 202 494 776 691 758 Average 2016 | 1 466 . 311 1146 299 492 729 509 . . . . 225 444 371 913 666 529 504 . . . . 199 240 683 1151 746 1016 4437 Maximum Alert Level 5 | . 3 . 2 5 3 3 3 2 . . . . 1 3 2 4 2 2 3 . . . . 1 2 3 4 4 4 5 Low Security (%) 8 | 100 18 . 41 . 36 29 . . . . . . . 9 . . . . . . . . . 66 31 . . . . . Level 1 8 | . 10 . 14 4 28 4 . . . . . . 100 33 97 8 . 2 28 . . . . 33 59 18 . 10 . . Level 2 24 | . 53 . 43 13 22 38 36 100 . . . . . 48 2 19 100 97 57 . . . . . 9 29 13 37 1 5 Level 3 19 | . 18 . . 32 12 26 63 . . . . . . 8 . 37 . . 14 . . . . . . 52 18 35 75 10 Level 4 8 | . . . . 27 . . . . . . . . . . . 34 . . . . . . . . . . 67 16 22 3 Level 5 1 | . . . . 21 . . . . . . . . . . . . . . . . . . . . . . . . . . High Security 29 | . . . . . . . . . . . . . . . . . . . . . . . . . . . . . . 80 Max Security . | . . . . . . . . . . . . . . . . . . . . . . . . . . . . . . . Sterilizations 2 | . . . . . . . . . . . . . . . . . . 1 . . . . . . 1 . . . . . Squads Dispatched 86 | . 9 . 4 . . . 4 2 . . . 1 . . 2 . 1 1 5 . . . 1 . 1 2 9 7 9 28 Investigation 25 | . 9 . 3 . . . 3 2 . . . . . . 2 . 1 . . . . . . . . 2 . . 1 2 Extermination 7 | . . . . . . . . . . . . . . . . . . . 1 . . . . . . . 1 2 1 2 Reinforcement 25 | . . . . . . . . . . . . . . . . . . 1 3 . . . . . 1 . 7 5 4 4 Assault 25 | . . . . . . . 1 . . . . 1 . . . . . . . . . . 1 . . . 1 . 1 20 Garrison 4 | . . . 1 . . . . . . . . . . . . . . . 1 . . . . . . . . . 2 . Intercept . | . . . . . . . . . . . . . . . . . . . . . . . . . . . . . . . Searches Triggered . | . . . . . . . . . . . . . . . . . . . . . . . . . . . . . . . Construction Impeded 1 | . . . . . . . . . . . . . . . . . . . . . . . . . . . . . 1 . Haulers Reinforced 3 | . . . . . . . . . . . . . . . . . . . . . . . . . . . . 2 1 . Active Scanning Responses . | . . . . . . . . . . . . . . . . . . . . . . . . . . . . . . . Cargo Convoy Interrupts . | . . . . . . . . . . . . . . . . . . . . . . . . . . . . . . . Stealth | -11 -10 -10 -8 -8 -8 -8 -7 -6 -6 -6 -6 -5 -5 -5 -5 -5 -5 -5 -4 -4 -4 -4 -3 -3 -3 -2 -2 -2 -1 -1 --------- Run | Yrd Mat Sub Mat Gar Mat Gar Fac Fac Low Low Zio Pro Fac Gar Fac Gar Fac DSF Fac Upp Upp War Pro Res DSF Res Tes Sec Acc Com Distress Signals 21 | . 2 . 2 1 1 . 1 1 . . . . . . . . . . . . . . 1 . . 5 1 . . 6 Communications Jammed . | . . . . . . . . . . . . . . . . . . . . . . . . . . . . . . . Distress Signals . | . . . . . . . . . . . . . . . . . . . . . . . . . . . . . . . Times Spotted 1032 | . 35 17 49 52 9 29 31 4 9 6 . 27 . 20 1 33 . 11 24 16 21 51 26 . 11 45 45 45 30 385 Peak Tracking Total 59 | . 8 3 6 5 3 13 5 2 4 4 . 7 . 5 1 7 . 4 4 5 6 12 8 . 4 6 8 7 7 59 Tactical Retreats 47 | . 3 . 4 7 . 2 . . 1 . . . . . . . . 1 . . . 1 1 . . 1 4 2 2 18 Traps | -11 -10 -10 -8 -8 -8 -8 -7 -6 -6 -6 -6 -5 -5 -5 -5 -5 -5 -5 -4 -4 -4 -4 -3 -3 -3 -2 -2 -2 -1 -1 ------- Run | Yrd Mat Sub Mat Gar Mat Gar Fac Fac Low Low Zio Pro Fac Gar Fac Gar Fac DSF Fac Upp Upp War Pro Res DSF Res Tes Sec Acc Com Traps Triggered 46 | . 1 3 1 7 . 3 . . . . . . . 5 1 8 . 1 . . . . . . 1 . . . . 15 Indirectly . | . . . . . . . . . . . . . . . . . . . . . . . . . . . . . . . Trap Hack Attempts . | . . . . . . . . . . . . . . . . . . . . . . . . . . . . . . . Triggered . | . . . . . . . . . . . . . . . . . . . . . . . . . . . . . . . Disarmed . | . . . . . . . . . . . . . . . . . . . . . . . . . . . . . . . Reprogrammed . | . . . . . . . . . . . . . . . . . . . . . . . . . . . . . . . Reused . | . . . . . . . . . . . . . . . . . . . . . . . . . . . . . . . Traps Extracted . | . . . . . . . . . . . . . . . . . . . . . . . . . . . . . . . Installed . | . . . . . . . . . . . . . . . . . . . . . . . . . . . . . . . Triggered 11 | . . . . . . . . . . . . . . . . . . . . . . 7 . . . . . . . 4 Machines | -11 -10 -10 -8 -8 -8 -8 -7 -6 -6 -6 -6 -5 -5 -5 -5 -5 -5 -5 -4 -4 -4 -4 -3 -3 -3 -2 -2 -2 -1 -1 ---------- Run | Yrd Mat Sub Mat Gar Mat Gar Fac Fac Low Low Zio Pro Fac Gar Fac Gar Fac DSF Fac Upp Upp War Pro Res DSF Res Tes Sec Acc Com Machines Disabled 75 | . . 1 . 11 1 4 2 3 . . . . . 5 . 6 . . 1 1 . 1 . . . 4 19 8 . 8 Max in Single Turn 3 | . . 1 . 1 1 1 2 1 . . . . . 1 . 1 . . 1 1 . 1 . . . 1 3 1 . 2 Garrison Access 4 | . . . . . . . 1 . . . . . . . . . . . . . . . . . . 2 1 . . . Garrison Relay 18 | . . . . 6 . 3 . . . . . . . 5 . 4 . . . . . . . . . . . . . . Phase Generator 1 | . . . . . . . . . . . . . . . . . . . . . . . . . . . . . . 1 Machines Repaired . | . . . . . . . . . . . . . . . . . . . . . . . . . . . . . . . Machines Dismantled . | . . . . . . . . . . . . . . . . . . . . . . . . . . . . . . . Machines Sabotaged 2 | . 2 . . . . . . . . . . . . . . . . . . . . . . . . . . . . . Overloaded Fab Kills . | . . . . . . . . . . . . . . . . . . . . . . . . . . . . . . . Hacking | -11 -10 -10 -8 -8 -8 -8 -7 -6 -6 -6 -6 -5 -5 -5 -5 -5 -5 -5 -4 -4 -4 -4 -3 -3 -3 -2 -2 -2 -1 -1 --------- Run | Yrd Mat Sub Mat Gar Mat Gar Fac Fac Low Low Zio Pro Fac Gar Fac Gar Fac DSF Fac Upp Upp War Pro Res DSF Res Tes Sec Acc Com Machines Accessed 95 | . 8 1 11 2 7 3 8 4 2 2 . . 1 2 4 2 2 . 2 1 1 5 . 2 . 3 6 3 2 11 Terminals 68 | . 6 . 8 2 6 3 6 2 1 . . . . 2 3 2 2 . 1 . . . . 1 . 3 5 3 2 10 Fabricators 2 | . . . . . . . . . . . . . . . . . . . 1 . . . . 1 . . . . . . Repair Stations . | . . . . . . . . . . . . . . . . . . . . . . . . . . . . . . . Recycling Units 8 | . 2 . 2 . . . 1 2 . . . . . . . . . . . . . . . . . . . . . 1 Scanalyzers . | . . . . . . . . . . . . . . . . . . . . . . . . . . . . . . . Garrison Access 6 | . . . 1 . 1 . 1 . . . . . 1 . 1 . . . . . . . . . . . 1 . . . Total Hacks 260 | . 11 4 45 3 24 3 28 9 5 5 . . 1 3 12 3 4 . 5 1 1 15 . 2 . 10 16 12 2 36 Successful 155 | . 10 4 27 2 15 3 13 4 5 5 . . 1 2 2 2 1 . 2 1 1 15 . 1 . 3 9 7 1 19 Failed 104 | . 1 . 17 1 9 . 15 5 . . . . . 1 10 1 3 . 3 . . . . 1 . 7 7 5 1 17 Catastrophic 18 | . . . . . 2 . 4 1 . . . . . . 3 . . . . . . . . . . 1 2 . 1 4 Database Lockouts 1 | . . . 1 . . . . . . . . . . . . . . . . . . . . . . . . . . . Manual 125 | . 15 . 32 . 17 . 14 8 . . 1 . . . 7 . . . 3 . . . . 1 . . 2 . 1 24 Terminals 206 | . 9 . 42 3 23 3 23 4 4 . . . . 3 11 3 4 . 3 . . . . 1 . 10 15 12 2 31 Fabricators 3 | . . . . . . . . . . . . . . . . . . . 2 . . . . 1 . . . . . . Repair Stations . | . . . . . . . . . . . . . . . . . . . . . . . . . . . . . . . Recycling Units 15 | . 2 . 2 . . . 1 5 . . . . . . . . . . . . . . . . . . . . . 5 Scanalyzers . | . . . . . . . . . . . . . . . . . . . . . . . . . . . . . . . Garrison Access 9 | . . . 1 . 1 . 4 . . . . . 1 . 1 . . . . . . . . . . . 1 . . . Terminal Hacks 115 | . 2 4 19 2 8 3 10 2 5 5 . . . 2 1 2 1 . 1 1 1 15 . 1 . 3 8 7 1 11 Record 16 | . . 4 . . . . . . 4 4 . . . . . . . . . 1 . 2 . . . . 1 . . . Part Schematic 3 | . . . . . . . 1 . . . . . . . . . . . . . . . . . . . 2 . . . Robot Analysis 9 | . 2 . 3 . . . 2 . . . . . . . . . . . . . . . . . . . 1 . . 1 Prototype ID Bank 19 | . . . 1 . . . 3 1 . . . . . . . . . . . . . 11 . . . 1 1 . . 1 Open Door 10 | . . . . 1 . 1 . . 1 1 . . . . . . . . . . 1 2 . . . . 1 2 . . Open DSF 2 | . . . . . . . . . . . . . . . . . 1 . . . . . . 1 . . . . . . Level Access Points 1 | . . . 1 . . . . . . . . . . . . . . . . . . . . . . . . . . . Branch Access Points 4 | . . . 1 . . . . 1 . . . . . . . . . . 1 . . . . . . . 1 . . . Emergency Access Points 6 | . . . . 1 . 1 . . . . . . . 1 . 1 . . . . . . . . . 1 . . . 1 Machine Index 1 | . . . . . . . . . . . . . . . . . . . . . . . . . . . . . . 1 Recycling Unit Index 1 | . . . . . . . . . . . . . . . . . . . . . . . . . . . . . . 1 Garrison Index 2 | . . . . . . . . . . . . . . . 1 . . . . . . . . . . . . . . 1 Alert Level 7 | . . . 2 . 1 . 1 . . . . . . . . . . . . . . . . . . . 1 1 . 1 Unreport Threat 16 | . . . 4 . 5 . 1 . . . . . . . . . . . . . . . . . . . . 4 . 2 Locate Traps 2 | . . . 1 . 1 . . . . . . . . . . . . . . . . . . . . . . . . . Maintenance Status 1 | . . . . . . . . . . . . . . . . . . . . . . . . . . 1 . . . . Patrol Status 1 | . . . 1 . . . . . . . . . . . . . . . . . . . . . . . . . . . Transport Status 1 | . . . 1 . . . . . . . . . . . . . . . . . . . . . . . . . . . Hauler Manifests 3 | . . . 1 . 1 . 1 . . . . . . . . . . . . . . . . . . . . . . . Registered Components 3 | . . . 1 . . . 1 . . . . . . . . . . . . . . . . . . . . . 1 . Registered Prototypes 1 | . . . 1 . . . . . . . . . . . . . . . . . . . . . . . . . . . Zone Layout 1 | . . . 1 . . . . . . . . . . . . . . . . . . . . . . . . . . . Garrison Registry 1 | . . . . . . 1 . . . . . . . . . . . . . . . . . . . . . . . . Patrol Navigation 1 | . . . . . . . . . . . . . . . . 1 . . . . . . . . . . . . . . Security Stations 1 | . . . . . . . . . . . . . . 1 . . . . . . . . . . . . . . . . Disengage Seal 2 | . . . . . . . . . . . . . . . . . . . . . . . . . . . . . . 2 Fabricator Hacks . | . . . . . . . . . . . . . . . . . . . . . . . . . . . . . . . Repair Station Hacks . | . . . . . . . . . . . . . . . . . . . . . . . . . . . . . . . Recycling Unit Hacks . | . . . . . . . . . . . . . . . . . . . . . . . . . . . . . . . Scanalyzer . | . . . . . . . . . . . . . . . . . . . . . . . . . . . . . . . Garrison Access Hacks 6 | . . . 1 . 1 . 1 . . . . . 1 . 1 . . . . . . . . . . . 1 . . . Unlock Access 4 | . . . 1 . 1 . . . . . . . 1 . 1 . . . . . . . . . . . . . . . Seal Access 2 | . . . . . . . 1 . . . . . . . . . . . . . . . . . . . 1 . . . Unauthorized Hacks 34 | . 8 . 7 . 6 . 2 2 . . . . . . . . . . 1 . . . . . . . . . . 8 Terminals 26 | . 6 . 5 . 6 . 2 . . . . . . . . . . . . . . . . . . . . . . 7 Botnet 19 | . . . 4 . 6 . 2 . . . . . . . . . . . . . . . . . . . . . . 7 Disrupt 1 | . . . 1 . . . . . . . . . . . . . . . . . . . . . . . . . . . Sabotage 6 | . 6 . . . . . . . . . . . . . . . . . . . . . . . . . . . . . Fabricators 1 | . . . . . . . . . . . . . . . . . . . 1 . . . . . . . . . . . Liberate 1 | . . . . . . . . . . . . . . . . . . . 1 . . . . . . . . . . . Repair Stations . | . . . . . . . . . . . . . . . . . . . . . . . . . . . . . . . Recycling Units 7 | . 2 . 2 . . . . 2 . . . . . . . . . . . . . . . . . . . . . 1 Mask 1 | . . . . . . . . . . . . . . . . . . . . . . . . . . . . . . 1 Tunnel 6 | . 2 . 2 . . . . 2 . . . . . . . . . . . . . . . . . . . . . . Scanalyzers . | . . . . . . . . . . . . . . . . . . . . . . . . . . . . . . . Garrison Access . | . . . . . . . . . . . . . . . . . . . . . . . . . . . . . . . Data Cores Recovered 8 | . . . 2 . . . 2 . . . . . . . . . . . . . . . . . . 1 . . 1 2 Used 6 | . . . . . . . 2 . . . . . . . . . . . . . . . . . . 1 . . 1 2 Hacking Detections 58 | . 1 . 6 1 6 2 8 2 1 . . . 1 1 4 1 1 . 2 . . . . 1 . 3 4 3 1 9 Full Trace Events 11 | . . . . . . . 3 . . . . . . . 2 . 1 . . . . . . . . 2 . . 1 2 Feedback Events 1 | . . . . . . . 1 . . . . . . . . . . . . . . . . . . . . . . . Corruption 1 | . . . . . . . 1 . . . . . . . . . . . . . . . . . . . . . . . Feedback Blocked . | . . . . . . . . . . . . . . . . . . . . . . . . . . . . . . . Robot Schematics Acquired 11 | . . . . . . . . . . . . . . . . . . . . . . . . . . . 6 5 . . Robots Built . | . . . . . . . . . . . . . . . . . . . . . . . . . . . . . . . Authchips . | . . . . . . . . . . . . . . . . . . . . . . . . . . . . . . . Time . | . . . . . . . . . . . . . . . . . . . . . . . . . . . . . . . Total Robot Build Rating . | . . . . . . . . . . . . . . . . . . . . . . . . . . . . . . . Part Schematics Acquired 31 | . . . . . . . 1 . . . . . . . . . . . . . . . . . . . 21 9 . . Parts Built . | . . . . . . . . . . . . . . . . . . . . . . . . . . . . . . . Authchips . | . . . . . . . . . . . . . . . . . . . . . . . . . . . . . . . Time . | . . . . . . . . . . . . . . . . . . . . . . . . . . . . . . . Total Part Build Rating . | . . . . . . . . . . . . . . . . . . . . . . . . . . . . . . . Parts Repaired . | . . . . . . . . . . . . . . . . . . . . . . . . . . . . . . . Time . | . . . . . . . . . . . . . . . . . . . . . . . . . . . . . . . Parts Recycled . | . . . . . . . . . . . . . . . . . . . . . . . . . . . . . . . Recycled Matter . | . . . . . . . . . . . . . . . . . . . . . . . . . . . . . . . Retrieved Matter . | . . . . . . . . . . . . . . . . . . . . . . . . . . . . . . . Retrieved Components . | . . . . . . . . . . . . . . . . . . . . . . . . . . . . . . . Parts Scanalyzed . | . . . . . . . . . . . . . . . . . . . . . . . . . . . . . . . Part Schematics Acquired . | . . . . . . . . . . . . . . . . . . . . . . . . . . . . . . . Parts Damaged . | . . . . . . . . . . . . . . . . . . . . . . . . . . . . . . . Bothacking | -11 -10 -10 -8 -8 -8 -8 -7 -6 -6 -6 -6 -5 -5 -5 -5 -5 -5 -5 -4 -4 -4 -4 -3 -3 -3 -2 -2 -2 -1 -1 ------------ Run | Yrd Mat Sub Mat Gar Mat Gar Fac Fac Low Low Zio Pro Fac Gar Fac Gar Fac DSF Fac Upp Upp War Pro Res DSF Res Tes Sec Acc Com Used RIF Installer . | . . . . . . . . . . . . . . . . . . . . . . . . . . . . . . . Robots Hacked . | . . . . . . . . . . . . . . . . . . . . . . . . . . . . . . . Non-combat . | . . . . . . . . . . . . . . . . . . . . . . . . . . . . . . . Combat . | . . . . . . . . . . . . . . . . . . . . . . . . . . . . . . . Robot Hacks Applied . | . . . . . . . . . . . . . . . . . . . . . . . . . . . . . . . Relay Couplers Released 30 | . . . . 8 . 6 . . . . . . . 8 . 7 . . . . . . . . . 1 . . . . Machine Destruction 30 | . . . . 8 . 6 . . . . . . . 8 . 7 . . . . . . . . . 1 . . . . Fabnet Peak Effective % . | . . . . . . . . . . . . . . . . . . . . . . . . . . . . . . . Robots Rewired 20 | . . . . 2 . 4 1 . . . . 2 . . . 1 . . . . 2 5 1 . . . 1 . . 1 Allies Hacked . | . . . . . . . . . . . . . . . . . . . . . . . . . . . . . . . Hacks Repelled . | . . . . . . . . . . . . . . . . . . . . . . . . . . . . . . . Allies | -11 -10 -10 -8 -8 -8 -8 -7 -6 -6 -6 -6 -5 -5 -5 -5 -5 -5 -5 -4 -4 -4 -4 -3 -3 -3 -2 -2 -2 -1 -1 -------- Run | Yrd Mat Sub Mat Gar Mat Gar Fac Fac Low Low Zio Pro Fac Gar Fac Gar Fac DSF Fac Upp Upp War Pro Res DSF Res Tes Sec Acc Com Total Allies 80 | . . . . 2 . 4 1 . . . 5 2 . . . 1 . . 2 . 2 5 1 . . . 1 . 6 48 Largest Group 14 | . . . . 2 2 4 5 . . . 5 5 5 5 . 1 1 1 2 . 2 6 2 . . . 1 . 5 14 Highest-Rated Group 340 | . . . . 45 45 112 132 . . . 138 151 151 151 . 99 89 89 98 . 77 340 113 . . . 152 . 70 198 Highest-Rated Ally 152 | . . . . 25 25 31 31 . . . 31 31 31 31 . 99 89 89 49 . 47 65 65 . . . 152 . 15 30 Total Orders 19 | . . . . . . . . . . . . . 1 . . . . . . . . 11 7 . . . . . . . STAY 12 | . . . . . . . . . . . . . 1 . . . . . . . . 8 3 . . . . . . . FOLLOW 7 | . . . . . . . . . . . . . . . . . . . . . . 3 4 . . . . . . . Ally Attacks 304 | . . . . . 6 2 19 . . . . 37 . 41 . 14 . 3 . . 5 8 6 . . . 12 . 15 136 Total Damage 6372 | . . . . . 217 41 331 . . . . 641 . 557 . 576 . 65 . . 139 334 159 . . . 803 . 215 2294 Kills 27 | . . . . . 2 . 3 . . . . 5 . 1 . 6 . . . . . 2 1 . . . 2 . 1 4 Allies Corrupted 2 | . . . . . . . . . . . . . . . . . . . . . . 1 . . . . . . . 1 Allies Melted 1 | . . . . . . . . . . . . . . . . . . . . . . . . . . 1 . . . . Intel | -11 -10 -10 -8 -8 -8 -8 -7 -6 -6 -6 -6 -5 -5 -5 -5 -5 -5 -5 -4 -4 -4 -4 -3 -3 -3 -2 -2 -2 -1 -1 ------- Run | Yrd Mat Sub Mat Gar Mat Gar Fac Fac Low Low Zio Pro Fac Gar Fac Gar Fac DSF Fac Upp Upp War Pro Res DSF Res Tes Sec Acc Com Robot Analysis Total 9 | . 2 . 3 . . . 2 . . . . . . . . . . . . . . . . . . . 1 . . 1 Derelict Logs Recovered 12 | . . 3 . . . . . . 1 . 2 3 . . . . . . . 1 2 . . . . . . . . . Drone Launches . | . . . . . . . . . . . . . . . . . . . . . . . . . . . . . . . Drone Recoveries . | . . . . . . . . . . . . . . . . . . . . . . . . . . . . . . . Decoded 0b10 Intel 195 | . . . . . . . . . . . . . 2 10 4 16 2 5 12 . . . . 10 9 14 17 27 11 56 Traps 24 | . . . . . . . . . . . . . . 2 . 2 . 1 1 . . . . 1 1 . 2 2 . 12 Emergency Access 16 | . . . . . . . . . . . . . . . . . . . . . . . . . . 3 2 1 . 10 Items 134 | . . . . . . . . . . . . . 2 7 4 9 1 4 10 . . . . 8 7 9 10 22 10 31 Machines 8 | . . . . . . . . . . . . . . 1 . 1 1 . . . . . . 1 . 1 3 . . . Patrols 7 | . . . . . . . . . . . . . . . . 2 . . 1 . . . . . 1 . . 1 1 1 Guards 4 | . . . . . . . . . . . . . . . . 1 . . . . . . . . . 1 . 1 . 1 Exits 2 | . . . . . . . . . . . . . . . . 1 . . . . . . . . . . . . . 1 Exploration | -11 -10 -10 -8 -8 -8 -8 -7 -6 -6 -6 -6 -5 -5 -5 -5 -5 -5 -5 -4 -4 -4 -4 -3 -3 -3 -2 -2 -2 -1 -1 ------------- Run | Yrd Mat Sub Mat Gar Mat Gar Fac Fac Low Low Zio Pro Fac Gar Fac Gar Fac DSF Fac Upp Upp War Pro Res DSF Res Tes Sec Acc Com Turns Passed 21170 | 45 871 1062 1189 1091 634 626 591 236 633 366 417 535 55 427 110 550 93 258 468 452 595 719 613 90 196 575 651 984 346 5692 Spaces Moved 28350 | 36 541 893 926 813 601 464 780 527 1172 893 1007 903 80 671 243 599 160 164 610 904 1070 1095 891 145 205 1019 1061 1179 509 8189 Core 10 | 1 . . . . . . . . . . . . . . . . . 9 . . . . . . . . . . . . Treads . | . . . . . . . . . . . . . . . . . . . . . . . . . . . . . . . Legs . | . . . . . . . . . . . . . . . . . . . . . . . . . . . . . . . Wheels 666 | 35 541 90 . . . . . . . . . . . . . . . . . . . . . . . . . . . . Hover . | . . . . . . . . . . . . . . . . . . . . . . . . . . . . . . . Flight 27674 | . . 803 926 813 601 464 780 527 1172 893 1007 903 80 671 243 599 160 155 610 904 1070 1095 891 145 205 1019 1061 1179 509 8189 Fastest Speed 32 | 50 90 40 80 80 80 80 32 32 34 34 34 34 34 34 34 34 39 39 39 39 39 39 39 39 39 39 39 39 39 34 Average Speed 45 | 88 90 89 82 80 80 80 41 32 34 34 34 34 34 34 34 37 39 42 39 39 39 39 39 39 39 39 39 39 39 42 Slowest Speed 122 | 90 90 120 120 80 80 80 80 34 34 34 34 34 34 34 34 39 39 100 39 39 99 39 39 39 99 80 39 39 39 122 Overloaded Moves . | . . . . . . . . . . . . . . . . . . . . . . . . . . . . . . . Propulsion Burnouts . | . . . . . . . . . . . . . . . . . . . . . . . . . . . . . . . Robots Hopped 70 | . . . . . . . . 3 1 3 1 . . . 2 1 . 2 6 1 3 . . . . 16 2 7 8 14 Cave-ins Triggered . | . . . . . . . . . . . . . . . . . . . . . . . . . . . . . . . Exploration Rate (%) 60 | 4 81 45 73 84 63 62 18 14 98 92 85 95 3 87 10 84 7 97 13 97 96 87 92 5 95 43 86 65 14 67 Regions Visited 30 Branch Regions 12 Pre-discovered Areas 14 | . 2 3 2 . . . . 2 1 . 1 1 . . . . . . . 1 1 . . . . . . . . . Known Exits Taken 21 | . . . 1 . 1 . 1 1 1 1 1 1 1 . 1 . 1 . 1 1 1 1 1 1 . 1 1 1 1 . Unknown Exits Taken 3 | 1 1 1 . . . . . . . . . . . . . . . . . . . . . . . . . . . . Scrap Searched 33 | . . 4 . . . . . . 5 5 4 4 . . . . . . . 3 5 . 3 . . . . . . . Spaces Dug 119 | . . . . . 17 . 6 3 2 . . . 2 . 2 . 9 . 4 . . . . 4 . 38 4 11 8 9 Terrain Destroyed 507 | . . . . . 26 . 58 5 5 8 . 7 2 . 4 . 9 . 15 10 20 5 22 4 4 74 71 28 11 119 Melee 19 | . . . . . . . . . . . . . . . . . . . 2 . . . . . . . 4 4 6 3 Projectile 190 | . . . . . 26 . 11 5 5 8 . 7 2 . 4 . 9 . 13 10 20 5 22 4 4 16 8 8 . 3 AOE 232 | . . . . . . . 47 . . . . . . . . . . . . . . . . . . 58 57 . . 70 Terrain Rammed 1 | . . . . . . . . . . . . . . . . . . . . . . . . . . . . 1 . . Walls Destroyed 1 | . . . . . . . . . . . . . . . . . . . . . . . . . . . . 1 . . Machines Disabled . | . . . . . . . . . . . . . . . . . . . . . . . . . . . . . . . Actions | -11 -10 -10 -8 -8 -8 -8 -7 -6 -6 -6 -6 -5 -5 -5 -5 -5 -5 -5 -4 -4 -4 -4 -3 -3 -3 -2 -2 -2 -1 -1 --------- Run | Yrd Mat Sub Mat Gar Mat Gar Fac Fac Low Low Zio Pro Fac Gar Fac Gar Fac DSF Fac Upp Upp War Pro Res DSF Res Tes Sec Acc Com Total 34135 | 43 813 1044 1164 1051 712 610 943 552 1370 917 1080 1070 103 818 264 841 185 316 758 976 1208 1314 1098 175 289 1118 1214 1567 582 9940 Wait 2575 | . 183 47 85 20 87 12 88 4 170 1 68 91 22 5 1 10 18 101 68 20 70 114 130 28 19 15 22 145 9 922 Move 28185 | 35 540 892 925 812 600 463 779 520 1169 886 1004 902 79 670 238 596 159 159 598 901 1063 1094 890 144 204 987 1056 1164 496 8160 Hop 64 | . . . . . . . . 3 1 3 1 . . . 2 1 . 2 5 1 3 . . . . 15 2 7 4 14 Pick Up 18 | . . . 1 . . 1 . . 1 1 2 . . . . . . . . . . . . . . . . 1 2 9 Fast Attach 201 | 7 1 6 13 6 2 . 2 3 3 2 2 2 . 2 1 2 . 1 . 3 4 3 . . . 4 11 14 . 107 Attach 9 | . . . . . . 1 . . . . . . . . . . . . 1 . . . . . . . 1 . . 6 Detach 12 | . . . . . . . . . . . . . . . . . . . . . 1 . . . . . 1 . . 10 Swap 124 | . 6 1 . . . . . 1 . . . 2 . . . 2 . . 1 . . 2 2 . 3 1 6 23 . 74 Drop 196 | . 2 5 10 2 1 2 2 3 1 3 3 1 . 1 1 2 . . . 2 3 3 . . 1 4 12 10 . 122 Fire 1490 | 1 55 53 83 92 22 52 50 16 17 17 . 32 2 46 3 74 8 35 61 27 35 55 43 3 23 50 52 126 40 317 Melee 75 | . . . . . . . . . . . . 2 . . . 1 . . 5 . . . 1 . . 3 16 10 15 22 Ram 1 | . . . . . . . . . . . . . . . . . . . . . . . . . . . . 1 . . Kick . | . . . . . . . . . . . . . . . . . . . . . . . . . . . . . . . Crush . | . . . . . . . . . . . . . . . . . . . . . . . . . . . . . . . Escape Stasis 385 | . . . . 54 . 36 . . . . . . . 79 18 113 . . . . . . . . 18 . . . . 67 Rewire 89 | . . . . 13 . 16 2 . . . . 9 . . . 4 . . . . 10 17 11 . . . 3 . . 4 Trap . | . . . . . . . . . . . . . . . . . . . . . . . . . . . . . . . Miscellaneous 711 | . 26 40 47 52 . 27 20 2 8 4 . 29 . 15 . 36 . 18 19 22 19 26 21 . 21 39 32 66 16 106 Route ------- -11/Scrapyard -10/Materials (discovered 4 exits: [*Mat x2] / [Min] / *Sub) -10/Subcaves -8/Materials (discovered 4 exits: *Fac x3 / Gar) -8/Garrison (discovered 3 exits: *Mat x3) -8/Materials (discovered 3 exits: *Fac x2 / Gar) -8/Garrison (discovered 3 exits: *Fac x3) -7/Factory (discovered 3 exits: *Fac / *Low x2) -6/Factory (discovered 2 exits: *Low x2) -6/Lower Caves -6/Lower Caves (discovered 2 exits: *Fac / *Zio) -6/Zion -5/Proximity Caves -5/Factory (discovered 3 exits: Fac x2 / Gar) -5/Garrison (discovered 3 exits: *Fac x3) -5/Factory (discovered 2 exits: *Fac / Gar) -5/Garrison (discovered 3 exits: *Fac x3) -5/Factory -5/DSF -4/Factory (discovered 5 exits: *Upp x2 / Ext x2 / Arm) -4/Upper Caves -4/Upper Caves (discovered 2 exits: *Res / *War) -4/Warlord -3/Proximity Caves -3/Research -3/DSF -2/Research (discovered 3 exits: *Acc x2 / *Tes) -2/Testing (discovered 2 exits: Acc / *Sec) -2/Section 7 -1/Access -1/Command To Fleet Rendezvous History --------- Turn | Location | Event 1 | -11/Scrapyard | Upgraded with Power slot (x1) 1 | -11/Scrapyard | Upgraded with Propulsion slot (x1) 1 | -11/Scrapyard | Upgraded with Utility slot (x1) 1 | -11/Scrapyard | Upgraded with Weapon slot (x1) 9 | -11/Scrapyard | Discovered new exit (range 15) 46 | -11/Scrapyard | Entered Materials 263 | -10/Materials | Discovered new exit (range 8) 265 | -10/Materials | Reached level 2 307 | -10/Materials | Discovered new exit (range 14) 316 | -10/Materials | Build established: Mutant 422 | -10/Materials | Discovered new exit (range 12) 515 | -10/Materials | Reached level 3 648 | -10/Materials | Discovered new exit (range 12) 745 | -10/Materials | Upgraded with Weapon slot (x1) 917 | -10/Materials | Entered Subcaves 919 | -10/Subcaves | Reached level 4 946 | -10/Subcaves | A swath of the cavern ceiling suddenly collapsed 980 | -10/Subcaves | Discovered new exit (range 12) 1040 | -10/Subcaves | Build established: Skirmisher 1053 | -10/Subcaves | A Subdweller sparked back to life 1053 | -10/Subcaves | A Subdweller sparked back to life 1053 | -10/Subcaves | A Subdweller sparked back to life 1073 | -10/Subcaves | Upgraded with Propulsion slot (x2) 1092 | -10/Subcaves | Ambushed by Subdweller buried in earth 1130 | -10/Subcaves | Found Prototype Flight Unit 1130 | -10/Subcaves | Identified Flightbrick 1132 | -10/Subcaves | Attached Flightbrick, gained temporary slots: Utility x3 1152 | -10/Subcaves | Learned 2 Materials zone layouts 1164 | -10/Subcaves | Learned location of Zion (-6) 1315 | -10/Subcaves | Visited 4L-MR0's lab 1336 | -10/Subcaves | Found Prototype Protection 1336 | -10/Subcaves | Identified Tower Shield 1338 | -10/Subcaves | Attached Tower Shield, gained temporary slots: Power, Propulsion x2, Utility x2, Weapon x2 1480 | -10/Subcaves | Disturbed a concealed Subdweller 1758 | -10/Subcaves | Visited Clippyterm 1761 | -10/Subcaves | Learned location of Section 7 (-2) 1761 | -10/Subcaves | Learned Factory garrison access intel 1771 | -10/Subcaves | Shifting Twisted Machinery released Sub. Beam Cannon 1979 | -10/Subcaves | Entered Materials 1980 | -8/Materials | Identified exit to Factory 1981 | -8/Materials | Reached level 5 1981 | -8/Materials | Reached level 6 2081 | -8/Materials | Reached level 7 2084 | -8/Materials | Upgraded with Utility slot (x1) 2135 | -8/Materials | Discovered exit to Factory (range 10) 2142 | -8/Materials | Garrison activated, responded to threat 2347 | -8/Materials | Reached level 8 2677 | -8/Materials | Reached level 9 2807 | -8/Materials | Central database locked down 2866 | -8/Materials | Reached level 10 3168 | -8/Materials | Identified exit to Garrison 3168 | -8/Materials | Entered Garrison 3214 | -8/Garrison | Reached level 11 3232 | -8/Garrison | Triggered checkpoint 3235 | -8/Garrison | Build established: Hacker-Skirmisher 3325 | -8/Garrison | Garrison Relay disabled 3434 | -8/Garrison | Reached level 12 3488 | -8/Garrison | Triggered checkpoint 3521 | -8/Garrison | Garrison Relay disabled 3528 | -8/Garrison | Triggered checkpoint 3603 | -8/Garrison | Discovered new exit (range 12) 3644 | -8/Garrison | Triggered checkpoint 3692 | -8/Garrison | Discovered new exit (range 7) 3722 | -8/Garrison | Triggered checkpoint 3766 | -8/Garrison | Garrison Relay disabled 3794 | -8/Garrison | Garrison Relay disabled 3797 | -8/Garrison | Garrison Relay disabled 3898 | -8/Garrison | Triggered checkpoint 3963 | -8/Garrison | Discovered new exit (range 12) 4014 | -8/Garrison | Triggered checkpoint 4023 | -8/Garrison | Garrison Relay disabled 4023 | -8/Garrison | Reached level 13 4058 | -8/Garrison | Upgraded with Utility slot (x2) 4102 | -8/Garrison | Triggered checkpoint 4208 | -8/Garrison | Upgraded with Utility slot (x2) 4250 | -8/Garrison | Identified exit to Materials 4259 | -8/Garrison | Entered Materials 4259 | -8/Materials | Accompanied by 2 allies 4351 | -8/Materials | Build established: Hacker-Gunner 4411 | -8/Materials | Discovered exit to Factory (range 13) 4807 | -8/Materials | Discovered exit to Factory (range 11) 4892 | -8/Materials | Identified exit to Garrison 4893 | -8/Materials | Entered Garrison 4903 | -8/Garrison | Triggered checkpoint 4948 | -8/Garrison | Garrison Relay disabled 5145 | -8/Garrison | Triggered checkpoint 5162 | -8/Garrison | Destroyed 14 combat bots 5165 | -8/Garrison | Discovered exit to Factory (range 8) 5173 | -8/Garrison | Discovered exit to Factory (range 7) 5173 | -8/Garrison | Discovered exit to Factory (range 65) 5173 | -8/Garrison | Discovered exit to Factory (range 61) 5200 | -8/Garrison | Reached level 14 5331 | -8/Garrison | Triggered checkpoint 5353 | -8/Garrison | Garrison Relay disabled 5365 | -8/Garrison | Triggered checkpoint 5393 | -8/Garrison | Triggered checkpoint 5466 | -8/Garrison | Garrison Relay disabled 5519 | -8/Garrison | Entered Factory 5519 | -7/Factory | Accompanied by 4 allies 5520 | -7/Factory | Loaded intel: 4 garrison access locations 5539 | -7/Factory | Discovered new exit (range 16) 5558 | -7/Factory | Identified exit to Lower Caves 5565 | -7/Factory | Reached level 15 5726 | -7/Factory | Discovered exit to Lower Caves (range 16) 5779 | -7/Factory | Discovered new exit (range 15) 5807 | -7/Factory | Identified exit to Factory 5919 | -7/Factory | First assault squad dispatched 5945 | -7/Factory | Reached level 16 5957 | -7/Factory | Build established: Hacker-Scout 6110 | -7/Factory | Entered another Factory area 6112 | -6/Factory | Reached level 17 6273 | -6/Factory | Identified exit to Lower Caves 6346 | -6/Factory | Entered Lower Caves 6458 | -6/Lower Caves | Met a Warlord Commander 6459 | -6/Lower Caves | Learned location of Warlord (-4) 6460 | -6/Lower Caves | Warlord Commander delivered Encrypted Comm Array 6460 | -6/Lower Caves | Reached level 18 6460 | -6/Lower Caves | Found Encrypted Comm Array 6567 | -6/Lower Caves | Found Alien Artifact 6567 | -6/Lower Caves | Identified Core Expander 6567 | -6/Lower Caves | Installed Core Expander, added new Utility slot 6643 | -6/Lower Caves | Discovered new exit (range 10) 6651 | -6/Lower Caves | Attracted the attention of an 0b10 base 6711 | -6/Lower Caves | Learned Factory garrison access intel 6711 | -6/Lower Caves | Learned Armory stockpile data 6711 | -6/Lower Caves | Learned location of 2 exits from Lower Caves 6726 | -6/Lower Caves | Destroyed 8 combat bots 6764 | -6/Lower Caves | Encountered a Warlord checkpoint 6766 | -6/Lower Caves | Learned 4 Factory zone layouts 6979 | -6/Lower Caves | Identified exit to Lower Caves 6979 | -6/Lower Caves | Entered another Lower Caves area 6980 | -6/Lower Caves | Identified exit to Zion 6980 | -6/Lower Caves | Identified exit to Factory 7073 | -6/Lower Caves | Attracted the attention of an 0b10 checkpoint 7150 | -6/Lower Caves | Learned Factory trap positions 7150 | -6/Lower Caves | Learned Extension emergency access door positions 7150 | -6/Lower Caves | Learned Extension terminal intel 7162 | -6/Lower Caves | Encountered a Warlord checkpoint 7345 | -6/Lower Caves | Entered Zion 7366 | -6/Zion | Received a hallucinogenic algorithm 7369 | -6/Zion | Discovered new exit (range 10) 7371 | -6/Zion | Identified exit to Proximity Caves 7398 | -6/Zion | Found GAL Module 7425 | -6/Zion | Given the Hacking Drone Bay 7439 | -6/Zion | Learned location of 1 exit from Factory 7484 | -6/Zion | Learned Factory emergency access door positions 7487 | -6/Zion | Found CR-A16's Pointy Stick 7508 | -6/Zion | Learned Factory emergency access door positions 7520 | -6/Zion | Given A8's code to call for help 7525 | -6/Zion | Gained Derelict followers 7762 | -6/Zion | Entered Proximity Caves 7762 | -5/Proximity Caves | Accompanied by 5 allies 7763 | -5/Proximity Caves | Reached level 19 7764 | -5/Proximity Caves | Attracted the attention of an 0b10 checkpoint 7769 | -5/Proximity Caves | Reached level 20 7826 | -5/Proximity Caves | Learned Factory stockpile data 7894 | -5/Proximity Caves | Learned Factory terminal intel 7909 | -5/Proximity Caves | Upgraded with Utility slot (x1) 7932 | -5/Proximity Caves | Spotted B-75 Beast 7944 | -5/Proximity Caves | Revealed the true nature of CR-A16's Pointy Stick 7947 | -5/Proximity Caves | Destroyed B-75 Beast 8014 | -5/Proximity Caves | Discovered exit to Factory (range 15) 8064 | -5/Proximity Caves | Attracted the attention of an 0b10 outpost 8096 | -5/Proximity Caves | Reached level 21 8297 | -5/Proximity Caves | Entered Factory 8297 | -5/Factory | Accompanied by 5 allies 8298 | -5/Factory | Identified exit to Factory 8300 | -5/Factory | Loaded intel: 97 trap records 8303 | -5/Factory | Loaded intel: 26 terminal locations 8304 | -5/Factory | Loaded intel: 4 garrison access locations 8313 | -5/Factory | Identified exit to Garrison 8352 | -5/Factory | Entered Garrison 8352 | -5/Garrison | Accompanied by 5 allies 8354 | -5/Garrison | Reached level 22 8460 | -5/Garrison | Triggered checkpoint 8483 | -5/Garrison | Garrison Relay disabled 8488 | -5/Garrison | Garrison Relay disabled 8490 | -5/Garrison | Triggered checkpoint 8535 | -5/Garrison | Garrison Relay disabled 8546 | -5/Garrison | Triggered checkpoint 8568 | -5/Garrison | Discovered new exit (range 9) 8641 | -5/Garrison | Discovered new exit (range 16) 8646 | -5/Garrison | Triggered checkpoint 8660 | -5/Garrison | Garrison Relay disabled 8664 | -5/Garrison | Triggered checkpoint 8701 | -5/Garrison | Learned Factory security intel 8714 | -5/Garrison | Triggered checkpoint 8758 | -5/Garrison | Triggered checkpoint 8759 | -5/Garrison | Garrison Relay disabled 8774 | -5/Garrison | Discovered new exit (range 12) 8778 | -5/Garrison | Identified exit to Factory 8779 | -5/Garrison | Entered Factory 8880 | -5/Factory | Discovered exit to Factory (range 12) 8889 | -5/Factory | Identified exit to Garrison 8889 | -5/Factory | Entered Garrison 8899 | -5/Garrison | Triggered checkpoint 8935 | -5/Garrison | Garrison Relay disabled 8935 | -5/Garrison | Reached level 23 8976 | -5/Garrison | Spotted B-75 Beast 8981 | -5/Garrison | Triggered checkpoint 8981 | -5/Garrison | Destroyed B-75 Beast 9008 | -5/Garrison | Discovered new exit (range 12) 9011 | -5/Garrison | Identified exit to Factory 9071 | -5/Garrison | Triggered checkpoint 9075 | -5/Garrison | Destroyed 12 combat bots 9079 | -5/Garrison | Garrison Relay disabled 9083 | -5/Garrison | Spotted Striker 9084 | -5/Garrison | Spotted Striker 9101 | -5/Garrison | Destroyed Striker 9111 | -5/Garrison | Destroyed Striker 9173 | -5/Garrison | Rewired Striker 9213 | -5/Garrison | Triggered checkpoint 9279 | -5/Garrison | Discovered exit to Factory (range 9) 9301 | -5/Garrison | Triggered checkpoint 9301 | -5/Garrison | Garrison Relay disabled 9345 | -5/Garrison | Triggered checkpoint 9411 | -5/Garrison | Triggered checkpoint 9427 | -5/Garrison | Garrison Relay disabled 9439 | -5/Garrison | Entered Factory 9439 | -5/Factory | Accompanied by 1 ally 9532 | -5/Factory | Identified exit to DSF 9532 | -5/Factory | Entered DSF 9532 | -5/DSF | Accompanied by 1 ally 9563 | -5/DSF | Additional patrols routed to DSF 9572 | -5/DSF | Reached level 24 9595 | -5/DSF | Discovered exit to Factory (range 17) 9725 | -5/DSF | Sterilization system engaged 9745 | -5/DSF | Ambient heat levels rising (+10) 9760 | -5/DSF | Ambient heat levels rising (+10) 9775 | -5/DSF | Ambient heat levels rising (+10) 9790 | -5/DSF | Ambient heat levels rising (+10) 9790 | -5/DSF | Entered Factory 9805 | -4/Factory | Identified exit to Upper Caves 9805 | -4/Factory | Identified exit to Extension 9805 | -4/Factory | Identified exit to Armory 9865 | -4/Factory | Spotted B-86 Titan 9866 | -4/Factory | Destroyed B-86 Titan 10087 | -4/Factory | Reached level 25 10227 | -4/Factory | Garrison activated, responded to threat 10258 | -4/Factory | Entered Upper Caves 10264 | -4/Upper Caves | Attracted the attention of an 0b10 checkpoint 10316 | -4/Upper Caves | Found Alien Artifact 10316 | -4/Upper Caves | Identified Dimensional Node Initializer 10316 | -4/Upper Caves | Initialized slip node 10392 | -4/Upper Caves | Discovered new exit (range 12) 10396 | -4/Upper Caves | Identified exit to Upper Caves 10475 | -4/Upper Caves | Learned location of Testing (-2) 10710 | -4/Upper Caves | Entered another Upper Caves area 10716 | -4/Upper Caves | Discovered new exit (range 15) 10724 | -4/Upper Caves | Reached level 26 10749 | -4/Upper Caves | Identified exit to Research 10755 | -4/Upper Caves | Identified exit to Warlord 10931 | -4/Upper Caves | Attracted the attention of an 0b10 checkpoint 11100 | -4/Upper Caves | Upgraded with Utility slot (x1) 11305 | -4/Upper Caves | Entered Warlord 11305 | -4/Warlord | Accompanied by 1 ally 11318 | -4/Warlord | System corruption cleaned by Quarantine Array 11548 | -4/Warlord | Warlord's base attacked by MAIN.C 11571 | -4/Warlord | Met Warlord 11577 | -4/Warlord | Found Prototype Special Weapon 11577 | -4/Warlord | Identified RU-N14's Throwing Claymores v3 11779 | -4/Warlord | Warlord forces counterattacked 11797 | -4/Warlord | Destroyed 11 combat bots 11859 | -4/Warlord | Reached level 27 11888 | -4/Warlord | Destroyed 8 combat bots 11888 | -4/Warlord | Spotted Striker 11891 | -4/Warlord | Destroyed Striker 11894 | -4/Warlord | Lost 6 allies 11952 | -4/Warlord | Spotted Striker 11953 | -4/Warlord | Spotted Striker 11955 | -4/Warlord | Spotted Striker 11967 | -4/Warlord | Destroyed Striker 11997 | -4/Warlord | Discovered new exit (range 11) 12010 | -4/Warlord | Identified exit to Proximity Caves 12013 | -4/Warlord | Lost 16 allies 12024 | -4/Warlord | Entered Proximity Caves 12024 | -3/Proximity Caves | Accompanied by 1 ally 12026 | -3/Proximity Caves | Spotted B-86 Titan 12036 | -3/Proximity Caves | Destroyed B-86 Titan 12088 | -3/Proximity Caves | Attracted the attention of an 0b10 checkpoint 12193 | -3/Proximity Caves | Attracted the attention of an 0b10 outpost 12275 | -3/Proximity Caves | Reached level 28 12317 | -3/Proximity Caves | Destroyed 7 combat bots 12348 | -3/Proximity Caves | Lost 3 allies 12616 | -3/Proximity Caves | Discovered exit to Research (range 13) 12637 | -3/Proximity Caves | Entered Research 12725 | -3/Research | Identified exit to DSF 12727 | -3/Research | Entered DSF 12729 | -3/DSF | Reached level 29 12750 | -3/DSF | Additional patrols routed to DSF 12763 | -3/DSF | Discovered new exit (range 14) 12901 | -3/DSF | Sterilization system engaged 12921 | -3/DSF | Ambient heat levels rising (+10) 12922 | -3/DSF | Identified exit to Research 12923 | -3/DSF | Entered Research 12923 | -2/Research | Warlord forces began assault on 0b10 12925 | -2/Research | Reached level 30 12925 | -2/Research | Destroyed 7 combat bots 12948 | -2/Research | Distinguished unit "Lair Dwellers" dispatched to help 12948 | -2/Research | Distinguished unit "Bridgeowners Association" dispatched to help 13033 | -2/Research | Research machine network offline 13080 | -2/Research | Discovered new exit (range 17) 13135 | -2/Research | Met up with Warlord 13142 | -2/Research | Spotted B-90 Cyclops 13150 | -2/Research | Destroyed B-90 Cyclops 13199 | -2/Research | Reached level 31 13358 | -2/Research | Discovered new exit (range 10) 13362 | -2/Research | Identified exit to Access 13384 | -2/Research | Discovered exit to Access (range 17) 13395 | -2/Research | Spotted Striker 13408 | -2/Research | Destroyed Striker 13498 | -2/Research | Identified exit to Testing 13498 | -2/Research | Entered Testing 13520 | -2/Testing | Found Prototype Energy Cannon 13520 | -2/Testing | Identified Disintegrator 13620 | -2/Testing | Reached level 32 13620 | -2/Testing | Scanned by Researcher 13651 | -2/Testing | Found Prototype Energy Cannon 13651 | -2/Testing | Identified Cld. Nova Cannon 13674 | -2/Testing | Lost 7 allies 13678 | -2/Testing | Found Prototype Energy Cannon 13678 | -2/Testing | Identified Hpw. Disruptor Cannon 13732 | -2/Testing | Discovered exit to Access (range 16) 13809 | -2/Testing | Found Prototype Protection 13809 | -2/Testing | Identified Med. Regenerative Plating 13844 | -2/Testing | Spotted PG-LSN19VHVC6 13847 | -2/Testing | Rewired PG-LSN19VHVC6 13851 | -2/Testing | Spotted PL-HRDRYVPO21 13933 | -2/Testing | Destroyed 9 combat bots 13945 | -2/Testing | Found Prototype Ballistic Gun 13945 | -2/Testing | Identified Hyp. Multirail 13993 | -2/Testing | Found Prototype Energy Cannon 13993 | -2/Testing | Identified Potential Cannon 13998 | -2/Testing | First assault squad dispatched 14120 | -2/Testing | Spotted Fortress 14148 | -2/Testing | Discovered new exit (range 5) 14149 | -2/Testing | Identified exit to Section 7 14149 | -2/Testing | Entered Section 7 14151 | -2/Section 7 | Reached level 33 14248 | -2/Section 7 | Upgraded with Utility slot (x1) 14302 | -2/Section 7 | Found Alien Artifact 14302 | -2/Section 7 | Identified Integrity Redistributor 14302 | -2/Section 7 | Used Integrity Redistributor, redistributed integrity from core (-0) 14334 | -2/Section 7 | Spotted S7 Guard 14368 | -2/Section 7 | Found Alien Artifact 14368 | -2/Section 7 | Identified Core Physics Calibrator 14374 | -2/Section 7 | Destroyed S7 Guard 14395 | -2/Section 7 | Spotted S7 Guard 14401 | -2/Section 7 | Found Alien Artifact 14401 | -2/Section 7 | Identified Integrated Thermoelectric Network 14401 | -2/Section 7 | Installed Integrated Thermoelectric Network, gained heat-energy exchange potential 14426 | -2/Section 7 | Destroyed S7 Guard 14445 | -2/Section 7 | Spotted Executioner 14445 | -2/Section 7 | Spotted Executioner 14462 | -2/Section 7 | Spotted B-99 Colossus 14483 | -2/Section 7 | Found Alien Artifact 14483 | -2/Section 7 | Identified Core Reset Matrix 14483 | -2/Section 7 | Used Core Reset Matrix 14487 | -2/Section 7 | Sensed 20 artifacts in vicinity 14499 | -2/Section 7 | Found LRC Energy Well 14499 | -2/Section 7 | Installed LRC Energy Well, increased energy storage capacity (+250) 14502 | -2/Section 7 | Found LRC Energy Well 14502 | -2/Section 7 | Installed LRC Energy Well, increased energy storage capacity (+250) 14525 | -2/Section 7 | Destroyed Executioner 14534 | -2/Section 7 | Destroyed Executioner 14547 | -2/Section 7 | Found Prototype Processor 14547 | -2/Section 7 | Identified Exp. Core Analyzer 14549 | -2/Section 7 | Found Exp. Core Analyzer 14555 | -2/Section 7 | Found Exp. Core Analyzer 14605 | -2/Section 7 | Destroyed B-99 Colossus 14623 | -2/Section 7 | Found Prototype Ballistic Gun 14623 | -2/Section 7 | Identified Multirail 14681 | -2/Section 7 | Spotted B-90 Cyclops 14713 | -2/Section 7 | Destroyed B-90 Cyclops 14745 | -2/Section 7 | Destroyed 7 combat bots 14782 | -2/Section 7 | Build established: Alien-Scout 14791 | -2/Section 7 | Destroyed 10 combat bots 14922 | -2/Section 7 | Found Integrated Dissipator 14922 | -2/Section 7 | Installed Integrated Dissipator, increased core heat dissipation (+20) 15044 | -2/Section 7 | Spotted S7 Guard 15088 | -2/Section 7 | Discovered exit to Access (range 15) 15104 | -2/Section 7 | Found Integrity Redistributor 15133 | -2/Section 7 | Entered Access 15135 | -1/Access | Reached level 34 15245 | -1/Access | Build established: Scavenger-Scout 15312 | -1/Access | Spotted B-99 Colossus 15317 | -1/Access | Destroyed B-99 Colossus 15330 | -1/Access | Discovered new exit (range 16) 15331 | -1/Access | Garrison activated, responded to threat 15334 | -1/Access | Reached level 35 15352 | -1/Access | Found Multirail 15362 | -1/Access | Spotted B-99 Colossus 15366 | -1/Access | Destroyed B-99 Colossus 15398 | -1/Access | Spotted B-99 Colossus 15408 | -1/Access | Destroyed B-99 Colossus 15415 | -1/Access | First assault squad dispatched 15478 | -1/Access | Destroyed 12 combat bots 15479 | -1/Access | Identified exit to Command 15479 | -1/Access | Entered Command 15534 | -1/Command | Disengaged cave seal 15534 | -1/Command | Derelicts emerged from the dark tunnel 15534 | -1/Command | Welcomed Warlord to Command 15746 | -1/Command | Spotted B-99 Colossus 15755 | -1/Command | Destroyed B-99 Colossus 15776 | -1/Command | Reached level 36 15781 | -1/Command | Spotted Striker 15784 | -1/Command | Spotted Executioner 15836 | -1/Command | Found Prototype Device 15836 | -1/Command | Identified Exp. Actuator Array 15993 | -1/Command | Build established: Wizard-Mutant 16028 | -1/Command | Disengaged cave seal 16229 | -1/Command | First assault squad dispatched 16307 | -1/Command | Lost 3 allies 16375 | -1/Command | Lost 3 allies 16385 | -1/Command | Destroyed 24 combat bots 16565 | -1/Command | High security lockdown imminent 16598 | -1/Command | Reached level 37 16619 | -1/Command | Destroyed 39 combat bots 16621 | -1/Command | P-80 Master assimilated allied DB-HO9(i) 16624 | -1/Command | Lost 10 allies 16633 | -1/Command | Spotted SK-2XJ(L) 16645 | -1/Command | High security lockdown engaged 16658 | -1/Command | Core integrity fell below 50% 16661 | -1/Command | Emitted hypermatrix ping 16666 | -1/Command | Assembled emerged from beneath the floor 16674 | -1/Command | Core integrity fell below 20% 16738 | -1/Command | Lost 53 allies 16746 | -1/Command | Destroyed 51 combat bots 16759 | -1/Command | Upgraded with Utility slot (x1) 16835 | -1/Command | Destroyed 20 combat bots 16908 | -1/Command | Destroyed 8 combat bots 16962 | -1/Command | Spotted Executioner 16964 | -1/Command | Spotted Striker 16967 | -1/Command | Destroyed Executioner 16973 | -1/Command | Spotted Executioner 16973 | -1/Command | Spotted Striker 16974 | -1/Command | Destroyed Striker 16977 | -1/Command | Destroyed Striker 16979 | -1/Command | Destroyed Executioner 17002 | -1/Command | Spotted I0-T8S(K) 17016 | -1/Command | Destroyed 22 combat bots 17041 | -1/Command | Assembled emerged from beneath the floor 17148 | -1/Command | Build established: Scavenger-Mutant 17204 | -1/Command | Spotted Executioner 17207 | -1/Command | Destroyed Executioner 17207 | -1/Command | Reached level 38 17208 | -1/Command | Spotted Striker 17208 | -1/Command | Spotted Striker 17211 | -1/Command | Destroyed Striker 17218 | -1/Command | Destroyed Striker 17235 | -1/Command | Spotted Executioner 17237 | -1/Command | Destroyed Executioner 17262 | -1/Command | Lost 8 allies 17264 | -1/Command | Destroyed 12 combat bots 17365 | -1/Command | Identified exit to Surface 17639 | -1/Command | Assembled emerged from beneath the floor 17664 | -1/Command | Found Unknown Device 17664 | -1/Command | Identified Launcher Loader 17784 | -1/Command | Spotted M Guard 17784 | -1/Command | Spotted M Guard 17786 | -1/Command | Spotted Combat Programmer 17787 | -1/Command | Spotted Combat Programmer 17810 | -1/Command | Destroyed Combat Programmer 17823 | -1/Command | Destroyed Combat Programmer 17863 | -1/Command | Destroyed M Guard 17871 | -1/Command | Lost 7 allies 17873 | -1/Command | Destroyed M Guard 17873 | -1/Command | All MAIN.C guards destroyed 17965 | -1/Command | Warlord commented on Warlord statues 18106 | -1/Command | Found Unknown Device 18106 | -1/Command | Identified Quantum Capacitor 18318 | -1/Command | Found Unknown Protection 18318 | -1/Command | Identified Hvy. Reflective Plating 18346 | -1/Command | Found Prototype Processor 18346 | -1/Command | Identified Exp. Melee Analysis Suite 18678 | -1/Command | Found Hvy. Reflective Plating 18879 | -1/Command | Found Prototype Device 18879 | -1/Command | Identified Thermal Barrier 18893 | -1/Command | Found Prototype Device 18893 | -1/Command | Identified Adv. Kinecellerator 19153 | -1/Command | Assembled emerged from beneath the floor 19153 | -1/Command | Found Hvy. Reflective Plating 19216 | -1/Command | Phase Generator disabled 19230 | -1/Command | Assembled emerged from beneath the floor 19240 | -1/Command | Spotted Executioner 19250 | -1/Command | Spotted Executioner 19254 | -1/Command | Destroyed Executioner 19257 | -1/Command | Destroyed Executioner 19281 | -1/Command | Build established: Hacker-Mutant 19298 | -1/Command | Lost 8 allies 19436 | -1/Command | Spotted B-99 Colossus 19439 | -1/Command | Spotted B-99 Colossus 19487 | -1/Command | Destroyed B-99 Colossus 19545 | -1/Command | Assembled emerged from beneath the floor 19850 | -1/Command | Lost 6 allies 19898 | -1/Command | Destroyed B-99 Colossus 19903 | -1/Command | Destroyed Executioner 19986 | -1/Command | Found Unknown Protection 19986 | -1/Command | Identified Hvy. Insulated Plating 20408 | -1/Command | Assembled emerged from beneath the floor 20610 | -1/Command | Used Integrity Redistributor, redistributed integrity to core (+351) 21074 | -1/Command | Found Adv. Kinecellerator 21171 | *** | Heading to fleet! Last Messages --------------- 21043_ HV Slug penetrates Sealed Barrier. 21045_ HV Slug penetrates Reinforced Barrier. 21055_ HV Slug penetrates as-22652. 21055_ as-22652 suffers critical hit (Destroy). 21055_ Destroyed Unknown Hover Unit. 21055_ HV Slug penetrates Reinforced Barrier. 21074_ Acquired Adv. Kinecellerator. 21076_ Dropped Imp. Particle Charger. 21077_ Dropped Gamma Rifle. 21080_ Acquired 88 matter. 21104_ Acquired Linear Accelerator. 21106_ Acquired 10 matter. 21109_ Acquired Unknown Ballistic Gun. 21109_ Identified Railgun. 21110_ Dropped Railgun. 21111_ Acquired 10 matter. 21165_ ALERT: Heavy assault forces dispatched. Map ----- +----------------------------------------------------+ | ?#![*# + % =# * * == * | | ?##!!#= # %/!# *%!=|= % %#+###### | | ??#[/] !# "" ==|!*[=%!%!%%!!=! [# # | | ??#[ # + ""!%*===!*=[!!%%!%*% # # | | ??#*%# # ""!|%%=!=*%[!=%%%%%! # "# | | ??# #* # !%|%|%*%==*!!=!!= [ + "# | | ??# # # %=!|==![*!%;;""""#! # "# | | ??# # ########*%[%%!%[ ### # T# | | ??# # #??????##!*=!%%!%####?# # "# | | ?## #####+##??????##=^%%%!=!#????# # "# | | ?# ! #### #???????#!%^%!|=^!#????# # "# | | ?# * #???????##=^* =!^*#????# # # | | ?#%% #????????##^* %^%##????# # # | | ?# = ######????????#]| =^%!%#????# # # | | ###+############????##^ =%/=##????# # # | | # %%* #????#%^ ^^!%#????# # + | | # ]!%! #????#;^ ^=^##????# ###+######## | | # %= % #???## !%[^ #????# # #?# | | # !%| #??##;;^^ ^^^;###??# + * #?# | | # =*!== #??# #??# ##! #?# | | # " "!! = %#??# #??# ##! #?# | | # ""R""%* ! #??# ^^W ^ ^^ #??# ## #?# | | # """"" = !* #??# ^ ^ #??# ## #?# | | ###########["###??# ^ a a ^ #??# #########?# | | ??????????##[##???# ^ "a ^ #??# #?????????# | | ?????????###%[###?# a"@ ^ #??# #?????????# | | ???????####==# ### a #??# #?????????### | | ??????## %= ## ^ #??# ############# | | ????### = ##% ##### ^^^ ^ #??# | | ????# % % ==### #?############# ### | | ??### = !?* ### #?# #????# # | | ### * ###############?# #????# + | | ### = % ####?????????????# ###### # | | # ## == # ##????????????# =! + # | | # # # * = # #????????????# / ###### #!! | | ### # *[[ # #????????????# #????# #! | | ##### !!%==# ###????????????########????# #!! | | % # #### # #= ###########???????????????????# ### | | ##############?????## ### | | % # """"" #?????# ## | | # "" " #?????# [ | | % # = * #?????# ## | | % !%* # #?????#####? | | % # ## ####+####### + #?????????# | | # ## #?# # """"#?????????# | | ####### #?# + """"#?????????# | | ##?????# """ #?# # """"#?????????# | | #??????# " " #?# # """"#?????????## | | #??????# """" #?# # ##########?? | | ???????# """" #?# # # #?? | +----------------------------------------------------+ Best States ------------- Heat Dissipation 159 Coolant Potential 100 Energy Generation 88 Energy Capacity 1190 Matter Stores 300 Matter Capacity 300 Sight Range 24 Robot Scan Range 44 Terrain Scan Range 16 Terrain Scan Density 710 ECM Strength 2 Cloak Strength 3 Power Amplification 50 Additional Mass Support 16 EM Shielding 3 Corruption Containment 12 Armor Coverage 2225 Resistance: KI 30 Resistance: TH 70 Resistance: EX 70 Resistance: EM 50 Resistance: I 20 Resistance: S 20 Resistance: P 20 Propulsion Shielding 66 Utility Shielding 66 Weapon Shielding 66 Point Defense Rating 240 Weapon Cycling 30 Evasion (%) 63 Target Analysis 12 Core Analysis 12 Armor Integrity Analysis 40 Matter Filtering 30 Energy Filtering 30 Particle Charging 35 Kinecelleration 50 Salvage Targeting 3 Offensive Hacking 40 Defensive Hacking 25 Item Schematics ----------------- Adv. Remote Shield | -2/Section 7 | Archive Exp. Target Analyzer | -2/Section 7 | Archive Exp. Focal Shield | -2/Section 7 | Archive Exp. Shield Generator | -2/Section 7 | Archive Imp. Energy Well | -2/Section 7 | Archive Adv. Dynamic Insulation System | -2/Section 7 | Archive Exp. Gyrokinetic Inverter | -2/Section 7 | Archive Imp. Energy Mantle | -2/Section 7 | Archive Exp. Q-thruster | -2/Section 7 | Archive Robot Schematics ------------------ A-02 Transporter | -2/Section 7 | Archive L-61 Swordsman | -2/Section 7 | Archive G-67 Veteran | -2/Section 7 | Archive A-15 Conveyor | -2/Section 7 | Archive C-55 Analyst | -2/Section 7 | Archive Fabricated ------------ Nothing Alien Tech Used ----------------- Core Expander Dimensional Node Initializer Integrity Redistributor Core Physics Calibrator Integrated Thermoelectric Network Core Reset Matrix LRC Energy Well Integrated Dissipator Achievements -------------- Decoder Ring Challenges ------------ None RPGLIKE | -11 -10 -10 -8 -8 -8 -8 -7 -6 -6 -6 -6 -5 -5 -5 -5 -5 -5 -5 -4 -4 -4 -4 -3 -3 -3 -2 -2 -2 -1 -1 --------- Run | Yrd Mat Sub Mat Gar Mat Gar Fac Fac Low Low Zio Pro Fac Gar Fac Gar Fac DSF Fac Upp Upp War Pro Res DSF Res Tes Sec Acc Com Levels Raised 37 | . 2 1 6 3 . 1 2 1 1 . . 3 . 1 . 1 . 1 1 . 1 1 1 . 1 2 1 1 2 3 XP Earned 59843 | 4000 4070 1100 8815 4404 348 1200 2915 2211 933 604 244 3647 734 1498 23 1418 . 493 1826 783 764 1295 1604 685 712 3401 1856 1832 1967 4461 XP Spent 57735 | 2440 3600 2000 6975 6200 750 . 3250 . 500 . 750 3850 . 3020 2100 . 1275 1700 . . 2600 1900 425 . 2600 . . 3600 . 8200 Upgrades 107 | 8 11 3 29 4 3 . 3 . 1 . 1 6 . 5 1 . 3 4 . . 1 2 2 . 1 . . 3 . 16 Power Slot 1 | 1 . . . . . . . . . . . . . . . . . . . . . . . . . . . . . . Propulsion Slot 3 | 1 . 2 . . . . . . . . . . . . . . . . . . . . . . . . . . . . Utility Slot 10 | 1 . . 1 4 . . . . . . . 1 . . . . . . . . 1 . . . . . . 1 . 1 Weapon Slot 2 | 1 1 . . . . . . . . . . . . . . . . . . . . . . . . . . . . . Core Integrity 10 | . . . . . . . . . . . . . . . . . . . . . . . . . . . . . . 10 Heat Dissipation 19 | . 6 . 5 . . . . . . . . 5 . 3 . . . . . . . . . . . . . . . . Energy Generation 4 | . . . 1 . . . 1 . . . . . . 2 . . . . . . . . . . . . . . . . Energy Storage 2 | . . . . . . . . . . . . . . . . . . . . . . . 2 . . . . . . . Mass Support 6 | . . 1 1 . . . 2 . . . . . . . 1 . . . . . . . . . 1 . . . . . Inventory Capacity 3 | . . . 1 . . . . . 1 . 1 . . . . . . . . . . . . . . . . . . . Sight Range 1 | . . . 1 . . . . . . . . . . . . . . . . . . . . . . . . . . . Sensor Range 13 | . . . 11 . . . . . . . . . . . . . 2 . . . . . . . . . . . . . Terrain Scan Density 7 | 4 . . . . 3 . . . . . . . . . . . . . . . . . . . . . . . . . Ranged Accuracy 5 | . 4 . . . . . . . . . . . . . . . . 1 . . . . . . . . . . . . Hack Attack % 6 | . . . 2 . . . . . . . . . . . . . 1 . . . . . . . . . . . . 3 Hack Defense % 3 | . . . 1 . . . . . . . . . . . . . . . . . . . . . . . . . . 2 KI Resistance % 2 | . . . 1 . . . . . . . . . . . . . . 1 . . . . . . . . . . . . TH Resistance % 2 | . . . 1 . . . . . . . . . . . . . . 1 . . . . . . . . . . . . EX Resistance % 2 | . . . 1 . . . . . . . . . . . . . . 1 . . . . . . . . . . . . KI Damage % 2 | . . . . . . . . . . . . . . . . . . . . . . . . . . . . 2 . . TH Damage % 4 | . . . 2 . . . . . . . . . . . . . . . . . . 2 . . . . . . . . Protomatter Created 16568 | . 568 434 816 819 . 362 391 117 138 45 . 444 . 226 . 653 . 269 394 168 463 1011 588 . 254 437 764 1255 772 5180 Integrity Restored 14101 | . 375 758 923 946 . 522 361 35 138 74 . 572 . 287 . 744 . 364 350 498 349 494 409 . 445 821 654 1351 371 2260 Core 8050 | . 306 514 420 447 . 259 166 20 87 33 . 291 . 161 . 375 . 201 194 384 78 239 259 . 197 366 281 716 278 1778 Parts 6051 | . 69 244 503 499 . 263 195 15 51 41 . 281 . 126 . 369 . 163 156 114 271 255 150 . 248 455 373 635 93 482 Protomatter Decayed 11952 | . 344 170 446 410 51 135 248 53 90 27 . 214 . 217 . 374 . 142 275 . 406 760 237 . 38 2301 474 618 483 3439 Game ------ Seed XenonHellfireReplicator Manual? 0 Play Time 05:47:59 Cumulative 244.7 hours Start 2025.03.12 @ 09:49:06 End 2025.03.14 @ 06:38:46 Sessions 11 Manual Loads 0 Difficulty Adventurer Special Mode Winter2019/RPGLIKE Game No. 105 Rogue 0 Adventurer 105 Explorer 0 Win Type 2 Total 10 Types 2/1/3/2/1/0/0/0/1 Lore% 79 Gallery% 73 Achievement% 77 Wizard Run 0 Options --------- Layout 2 ASCII 0 Keyboard 0 Movement Numpad Keybinds 0 Fullscreen 2 Font 24/Smallcaps Map View 50x44 Zoom Use 0% Tactical HUD 1 Map Filters NONE Filters NONE Steam 1 RUN: ead0f493-050f-4d44-a271-4ca6fe0dfb89